Workbook

Sheet Model
A1: Time Line/Dashboard | F1: Pre-tax | G1: Project | H1: Debt | I1: Equity
B2: Time Period (ALT S from Period 1) | E2: IRR | F2: =F75 -> 0.1197753169 | G2: =F92 -> 0.1068764874 | H2: =F135 -> 0.035 | I2: =J199 -> 0.2093215689 | J2: 0 | K2: 1 | L2: 2 | M2: 3 | N2: 4 | O2: 5 | P2: 6 | Q2: 7 | R2: 8 | S2: 9 | T2: 10 | U2: 11 | V2: 12 | W2: 13 | X2: 14 | Y2: 15 | Z2: 16 | AA2: 17 | AB2: 18 | AC2: 19 | AD2: 20 | AE2: 21 | AF2: 22 | AG2: 23 | AH2: 24 | AI2: 25 | AJ2: 26 | AK2: 27 | AL2: 28 | AM2: 29 | AN2: 30 | AO2: 31 | AP2: 32 | AQ2: 33 | AR2: 34 | AS2: 35 | AT2: 36 | AU2: 37 | AV2: 38 | AW2: 39 | AX2: 40
B3: Operating Period | F3: =F7 -> 25 | K3: =K2<=$F$3 -> TRUE | L3: TRUE | M3: TRUE | N3: TRUE | O3: TRUE | P3: TRUE | Q3: TRUE | R3: TRUE | S3: TRUE | T3: TRUE | U3: TRUE | V3: TRUE | W3: TRUE | X3: TRUE | Y3: TRUE | Z3: TRUE | AA3: TRUE | AB3: TRUE | AC3: TRUE | AD3: TRUE | AE3: TRUE | AF3: TRUE | AG3: TRUE | AH3: TRUE | AI3: TRUE | AJ3: FALSE | AK3: FALSE | AL3: FALSE | AM3: FALSE | AN3: FALSE | AO3: FALSE | AP3: FALSE | AQ3: FALSE | AR3: FALSE | AS3: FALSE | AT3: FALSE | AU3: FALSE | AV3: FALSE | AW3: FALSE | AX3: FALSE
B4: Year | E4: ='Operating Data'!D10 -> Mono P90 | J4: 2019-01-01 | K4: =EDATE(J4,12) -> 2020-01-01 | L4: =EDATE(K4,12) -> 2021-01-01 | M4: 2022-01-01 | N4: 2023-01-01 | O4: 2024-01-01 | P4: 2025-01-01 | Q4: 2026-01-01 | R4: 2027-01-01 | S4: 2028-01-01 | T4: 2029-01-01 | U4: 2030-01-01 | V4: 2031-01-01 | W4: 2032-01-01 | X4: 2033-01-01 | Y4: 2034-01-01 | Z4: 2035-01-01 | AA4: 2036-01-01 | AB4: 2037-01-01 | AC4: 2038-01-01 | AD4: 2039-01-01 | AE4: 2040-01-01 | AF4: 2041-01-01 | AG4: 2042-01-01 | AH4: 2043-01-01 | AI4: 2044-01-01 | AJ4: 2045-01-01 | AK4: 2046-01-01 | AL4: 2047-01-01 | AM4: 2048-01-01 | AN4: 2049-01-01 | AO4: 2050-01-01 | AP4: 2051-01-01 | AQ4: 2052-01-01 | AR4: 2053-01-01 | AS4: 2054-01-01 | AT4: 2055-01-01 | AU4: 2056-01-01 | AV4: 2057-01-01 | AW4: 2058-01-01 | AX4: 2059-01-01
A5: Assumptions
B6: Operations
C7: Life | E7: Year | F7: ='Operating Data'!E13 -> 25
C9: Capacity | E9: MWp | F9: ='Operating Data'!K10 -> 710
C10: Yield | E10: kWh/kWp | F10: ='Operating Data'!M10/'Operating Data'!K10*1000 -> 2009.689009
C11: Capacity Factor | E11: % | F11: =F10/(365*24) -> 0.2294165536
C12: Degradation | E12: % p.a. | F12: ='Operating Data'!L10 -> 0.004
B14: Inflation Rate | E14: % p.a. | F14: ='Operating Data'!E18 -> 0.02
B16: Contracts
C17: EPC Contract and Developemnt Cost | E17: USD 000's | F17: ='Operating Data'!I10 -> 472348.5937
C19: O&M Contract | E19: USD 000's | F19: ='Operating Data'!Q10 -> 2842.488
C20: Project Administrative Cost | E20: USD 000's | F20: ='Operating Data'!O10 -> 500
C21: Insurance Cost | E21: USD 000's | F21: ='Operating Data'!P10 -> 1017.062992
C23: PPA Price | E23: USD/MWH | F23: 40.25130612
C24: Inflate PPA Price | E24: Switch | F24: TRUE
C25: Target IRR | E25: % | F25: 0.1
C26: NPV at Target IRR | F26: =NPV(F25,198:198) -> 142619.5409
B28: Tax and Depreciation
C29: Depreciation Rate | E29: % p.a. | F29: ='Operating Data'!E16 -> 0.05
C30: Tax Rate | E30: % | F30: ='Operating Data'!E15 -> 0.15
B32: Debt Financing
C33: Debt Size
D34: Debt as Percent of Project Cost | E34: % | F34: ='Operating Data'!F21 -> 0.75
D35: Repayment Tenor | E35: Years | F35: ='Operating Data'!F22 -> 15
D36: Repayment Style | E36: Code | F36: 1
D37: Base Interest Rate | E37: % p.a. | F37: ='Operating Data'!F24 -> 0.02
D38: Credit Spread | E38: %.p.a. | F38: ='Operating Data'!F25 -> 0.015
D39: Fees | E39: % | F39: 0
D40: DSRA as Percent of Prospective Debt Service | E40: % | F40: 0
D41: Interest Income Rate | E41: % | F41: 0
G43: 0 | H43: 1 | I43: 2 | J43: 3 | K43: 4 | L43: 5 | M43: 6 | N43: 7 | O43: 8 | P43: 9 | Q43: 10 | R43: 11 | S43: 12 | T43: 13 | U43: 14 | V43: 15 | W43: 16 | X43: 17 | Y43: 18 | Z43: 19 | AA43: 20 | AB43: 21 | AC43: 22 | AD43: 23 | AE43: 24 | AF43: 25 | AG43: 26 | AH43: 27 | AI43: 28 | AJ43: 29 | AK43: 30
D44: Tenor | H44: =H43<=$F$35 -> TRUE | I44: =I43<=$F$35 -> TRUE | J44: TRUE | K44: TRUE | L44: TRUE | M44: TRUE | N44: TRUE | O44: TRUE | P44: TRUE | Q44: TRUE | R44: TRUE | S44: TRUE | T44: TRUE | U44: TRUE | V44: TRUE | W44: FALSE | X44: FALSE | Y44: FALSE | Z44: FALSE | AA44: FALSE | AB44: FALSE | AC44: FALSE | AD44: FALSE | AE44: FALSE | AF44: FALSE | AG44: FALSE | AH44: FALSE | AI44: FALSE | AJ44: FALSE | AK44: FALSE
D45: Level DS Payment | F45: =F37+F38 -> 0.035 | H45: =IF(H44,PPMT($F$45,H43,$F$35,-1)) -> 0.05182506937 | I45: =IF(I44,PPMT($F$45,I43,$F$35,-1)) -> 0.05363894679 | J45: 0.05551630993 | K45: 0.05745938078 | L45: 0.05947045911 | M45: 0.06155192518 | N45: 0.06370624256 | O45: 0.06593596105 | P45: 0.06824371968 | Q45: 0.07063224987 | R45: 0.07310437862 | S45: 0.07566303187 | T45: 0.07831123798 | U45: 0.08105213131 | V45: 0.08388895591 | W45: FALSE | X45: FALSE | Y45: FALSE | Z45: FALSE | AA45: FALSE | AB45: FALSE | AC45: FALSE | AD45: FALSE | AE45: FALSE | AF45: FALSE | AG45: FALSE | AH45: FALSE | AI45: FALSE | AJ45: FALSE | AK45: FALSE
D46: Level Repayment | F46: =F35 -> 15 | H46: =IF(H44,1/$F$46) -> 0.06666666667 | I46: =IF(I44,1/$F$46) -> 0.06666666667 | J46: 0.06666666667 | K46: 0.06666666667 | L46: 0.06666666667 | M46: 0.06666666667 | N46: 0.06666666667 | O46: 0.06666666667 | P46: 0.06666666667 | Q46: 0.06666666667 | R46: 0.06666666667 | S46: 0.06666666667 | T46: 0.06666666667 | U46: 0.06666666667 | V46: 0.06666666667 | W46: FALSE | X46: FALSE | Y46: FALSE | Z46: FALSE | AA46: FALSE | AB46: FALSE | AC46: FALSE | AD46: FALSE | AE46: FALSE | AF46: FALSE | AG46: FALSE | AH46: FALSE | AI46: FALSE | AJ46: FALSE | AK46: FALSE
A48: Operations
B49: Time Line | J49: =J2 -> 0 | K49: 1 | L49: 2 | M49: 3 | N49: 4 | O49: 5 | P49: 6 | Q49: 7 | R49: 8 | S49: 9 | T49: 10 | U49: 11 | V49: 12 | W49: 13 | X49: 14 | Y49: 15 | Z49: 16 | AA49: 17 | AB49: 18 | AC49: 19 | AD49: 20 | AE49: 21 | AF49: 22 | AG49: 23 | AH49: 24 | AI49: 25 | AJ49: 26 | AK49: 27 | AL49: 28 | AM49: 29 | AN49: 30 | AO49: 31 | AP49: 32 | AQ49: 33 | AR49: 34 | AS49: 35 | AT49: 36 | AU49: 37 | AV49: 38 | AW49: 39 | AX49: 40
B50: Capacity | E50: MWp | F50: =F9 -> 710 | K50: =$F$50*K3 -> 710 | L50: 710 | M50: 710 | N50: 710 | O50: 710 | P50: 710 | Q50: 710 | R50: 710 | S50: 710 | T50: 710 | U50: 710 | V50: 710 | W50: 710 | X50: 710 | Y50: 710 | Z50: 710 | AA50: 710 | AB50: 710 | AC50: 710 | AD50: 710 | AE50: 710 | AF50: 710 | AG50: 710 | AH50: 710 | AI50: 710 | AJ50: 0 | AK50: 0 | AL50: 0 | AM50: 0 | AN50: 0 | AO50: 0 | AP50: 0 | AQ50: 0 | AR50: 0 | AS50: 0 | AT50: 0 | AU50: 0 | AV50: 0 | AW50: 0 | AX50: 0
B51: Hours of Operation | E51: Hours | F51: =F10 -> 2009.689009 | G51: ='Sensitivity Factors'!G18 -> 1 | K51: =$F$51*K3*$G$51 -> 2009.689009 | L51: =$F$51*L3*$G$51 -> 2009.689009 | M51: 2009.689009 | N51: 2009.689009 | O51: 2009.689009 | P51: 2009.689009 | Q51: 2009.689009 | R51: 2009.689009 | S51: 2009.689009 | T51: 2009.689009 | U51: 2009.689009 | V51: 2009.689009 | W51: 2009.689009 | X51: 2009.689009 | Y51: 2009.689009 | Z51: 2009.689009 | AA51: 2009.689009 | AB51: 2009.689009 | AC51: 2009.689009 | AD51: 2009.689009 | AE51: 2009.689009 | AF51: 2009.689009 | AG51: 2009.689009 | AH51: 2009.689009 | AI51: 2009.689009 | AJ51: 0 | AK51: 0 | AL51: 0 | AM51: 0 | AN51: 0 | AO51: 0 | AP51: 0 | AQ51: 0 | AR51: 0 | AS51: 0 | AT51: 0 | AU51: 0 | AV51: 0 | AW51: 0 | AX51: 0
B52: Generation Before Degradation | E52: MWh | K52: =K50*K51 -> 1426879.197 | L52: =L50*L51 -> 1426879.197 | M52: 1426879.197 | N52: 1426879.197 | O52: 1426879.197 | P52: 1426879.197 | Q52: 1426879.197 | R52: 1426879.197 | S52: 1426879.197 | T52: 1426879.197 | U52: 1426879.197 | V52: 1426879.197 | W52: 1426879.197 | X52: 1426879.197 | Y52: 1426879.197 | Z52: 1426879.197 | AA52: 1426879.197 | AB52: 1426879.197 | AC52: 1426879.197 | AD52: 1426879.197 | AE52: 1426879.197 | AF52: 1426879.197 | AG52: 1426879.197 | AH52: 1426879.197 | AI52: 1426879.197 | AJ52: 0 | AK52: 0 | AL52: 0 | AM52: 0 | AN52: 0 | AO52: 0 | AP52: 0 | AQ52: 0 | AR52: 0 | AS52: 0 | AT52: 0 | AU52: 0 | AV52: 0 | AW52: 0 | AX52: 0
B53: Degradation | E53: Index | F53: =F12 -> 0.004 | J53: 1 | K53: =J53*(1+$F$53) -> 1.004 | L53: =K53*(1+$F$53) -> 1.008016 | M53: 1.012048064 | N53: 1.016096256 | O53: 1.020160641 | P53: 1.024241284 | Q53: 1.028338249 | R53: 1.032451602 | S53: 1.036581408 | T53: 1.040727734 | U53: 1.044890645 | V53: 1.049070208 | W53: 1.053266488 | X53: 1.057479554 | Y53: 1.061709473 | Z53: 1.06595631 | AA53: 1.070220136 | AB53: 1.074501016 | AC53: 1.07879902 | AD53: 1.083114216 | AE53: 1.087446673 | AF53: 1.09179646 | AG53: 1.096163646 | AH53: 1.1005483 | AI53: 1.104950494 | AJ53: 1.109370296 | AK53: 1.113807777 | AL53: 1.118263008 | AM53: 1.12273606 | AN53: 1.127227004 | AO53: 1.131735912 | AP53: 1.136262856 | AQ53: 1.140807907 | AR53: 1.145371139 | AS53: 1.149952623 | AT53: 1.154552434 | AU53: 1.159170644 | AV53: 1.163807326 | AW53: 1.168462555 | AX53: 1.173136406
B54: Generation After Degradation | E54: MWh | K54: =K52/K53 -> 1421194.419 | L54: =L52/L53 -> 1415532.29 | M54: 1409892.719 | N54: 1404275.616 | O54: 1398680.893 | P54: 1393108.459 | Q54: 1387558.226 | R54: 1382030.106 | S54: 1376524.01 | T54: 1371039.85 | U54: 1365577.54 | V54: 1360136.992 | W54: 1354718.12 | X54: 1349320.836 | Y54: 1343945.056 | Z54: 1338590.693 | AA54: 1333257.663 | AB54: 1327945.879 | AC54: 1322655.258 | AD54: 1317385.715 | AE54: 1312137.167 | AF54: 1306909.529 | AG54: 1301702.718 | AH54: 1296516.651 | AI54: 1291351.246 | AJ54: 0 | AK54: 0 | AL54: 0 | AM54: 0 | AN54: 0 | AO54: 0 | AP54: 0 | AQ54: 0 | AR54: 0 | AS54: 0 | AT54: 0 | AU54: 0 | AV54: 0 | AW54: 0 | AX54: 0
A56: Contracts and EBITDA
B57: Total EPC Cost | E57: USD 000's | F57: =F17 -> 472348.5937 | G57: ='Sensitivity Factors'!E18 -> 1 | J57: =F57*G57 -> 472348.5937
B59: Inflation Index | E59: Index | F59: =F14 -> 0.02 | J59: 1 | K59: =J59*(1+$F$59) -> 1.02 | L59: =K59*(1+$F$59) -> 1.0404 | M59: 1.061208 | N59: 1.08243216 | O59: 1.104080803 | P59: 1.126162419 | Q59: 1.148685668 | R59: 1.171659381 | S59: 1.195092569 | T59: 1.21899442 | U59: 1.243374308 | V59: 1.268241795 | W59: 1.29360663 | X59: 1.319478763 | Y59: 1.345868338 | Z59: 1.372785705 | AA59: 1.400241419 | AB59: 1.428246248 | AC59: 1.456811173 | AD59: 1.485947396 | AE59: 1.515666344 | AF59: 1.545979671 | AG59: 1.576899264 | AH59: 1.608437249 | AI59: 1.640605994 | AJ59: 1.673418114 | AK59: 1.706886477 | AL59: 1.741024206 | AM59: 1.77584469 | AN59: 1.811361584 | AO59: 1.847588816 | AP59: 1.884540592 | AQ59: 1.922231404 | AR59: 1.960676032 | AS59: 1.999889553 | AT59: 2.039887344 | AU59: 2.080685091 | AV59: 2.122298792 | AW59: 2.164744768 | AX59: 2.208039664
B60: O&M Cost per kW-yr | E60: USD | F60: =F19 -> 2842.488 | G60: ='Sensitivity Factors'!F18 -> 1 | J60: =$F60*J$59*J$3*$G60 -> 0 | K60: =$F60*K$59*K$3*$G60 -> 2899.33776 | L60: =$F60*L$59*L$3*$G60 -> 2957.324515 | M60: =$F60*M$59*M$3*$G60 -> 3016.471006 | N60: =$F60*N$59*N$3*$G60 -> 3076.800426 | O60: =$F60*O$59*O$3*$G60 -> 3138.336434 | P60: =$F60*P$59*P$3*$G60 -> 3201.103163 | Q60: =$F60*Q$59*Q$3*$G60 -> 3265.125226 | R60: =$F60*R$59*R$3*$G60 -> 3330.427731 | S60: =$F60*S$59*S$3*$G60 -> 3397.036285 | T60: =$F60*T$59*T$3*$G60 -> 3464.977011 | U60: =$F60*U$59*U$3*$G60 -> 3534.276551 | V60: =$F60*V$59*V$3*$G60 -> 3604.962082 | W60: =$F60*W$59*W$3*$G60 -> 3677.061324 | X60: =$F60*X$59*X$3*$G60 -> 3750.60255 | Y60: =$F60*Y$59*Y$3*$G60 -> 3825.614601 | Z60: =$F60*Z$59*Z$3*$G60 -> 3902.126893 | AA60: =$F60*AA$59*AA$3*$G60 -> 3980.169431 | AB60: =$F60*AB$59*AB$3*$G60 -> 4059.77282 | AC60: =$F60*AC$59*AC$3*$G60 -> 4140.968276 | AD60: =$F60*AD$59*AD$3*$G60 -> 4223.787642 | AE60: =$F60*AE$59*AE$3*$G60 -> 4308.263395 | AF60: =$F60*AF$59*AF$3*$G60 -> 4394.428662 | AG60: =$F60*AG$59*AG$3*$G60 -> 4482.317236 | AH60: =$F60*AH$59*AH$3*$G60 -> 4571.96358 | AI60: =$F60*AI$59*AI$3*$G60 -> 4663.402852 | AJ60: =$F60*AJ$59*AJ$3*$G60 -> 0 | AK60: =$F60*AK$59*AK$3*$G60 -> 0 | AL60: =$F60*AL$59*AL$3*$G60 -> 0 | AM60: =$F60*AM$59*AM$3*$G60 -> 0 | AN60: =$F60*AN$59*AN$3*$G60 -> 0 | AO60: =$F60*AO$59*AO$3*$G60 -> 0 | AP60: =$F60*AP$59*AP$3*$G60 -> 0 | AQ60: =$F60*AQ$59*AQ$3*$G60 -> 0 | AR60: =$F60*AR$59*AR$3*$G60 -> 0 | AS60: =$F60*AS$59*AS$3*$G60 -> 0 | AT60: =$F60*AT$59*AT$3*$G60 -> 0 | AU60: =$F60*AU$59*AU$3*$G60 -> 0 | AV60: =$F60*AV$59*AV$3*$G60 -> 0 | AW60: =$F60*AW$59*AW$3*$G60 -> 0 | AX60: =$F60*AX$59*AX$3*$G60 -> 0
B61: Project Overhead | E61: USD 000 | F61: =F20 -> 500 | G61: =G60 -> 1 | J61: =$F61*J$59*J$3*$G61 -> 0 | K61: =$F61*K$59*K$3*$G61 -> 510 | L61: =$F61*L$59*L$3*$G61 -> 520.2 | M61: =$F61*M$59*M$3*$G61 -> 530.604 | N61: =$F61*N$59*N$3*$G61 -> 541.21608 | O61: =$F61*O$59*O$3*$G61 -> 552.0404016 | P61: =$F61*P$59*P$3*$G61 -> 563.0812096 | Q61: =$F61*Q$59*Q$3*$G61 -> 574.3428338 | R61: =$F61*R$59*R$3*$G61 -> 585.8296905 | S61: =$F61*S$59*S$3*$G61 -> 597.5462843 | T61: =$F61*T$59*T$3*$G61 -> 609.49721 | U61: =$F61*U$59*U$3*$G61 -> 621.6871542 | V61: =$F61*V$59*V$3*$G61 -> 634.1208973 | W61: =$F61*W$59*W$3*$G61 -> 646.8033152 | X61: =$F61*X$59*X$3*$G61 -> 659.7393815 | Y61: =$F61*Y$59*Y$3*$G61 -> 672.9341692 | Z61: =$F61*Z$59*Z$3*$G61 -> 686.3928525 | AA61: =$F61*AA$59*AA$3*$G61 -> 700.1207096 | AB61: =$F61*AB$59*AB$3*$G61 -> 714.1231238 | AC61: =$F61*AC$59*AC$3*$G61 -> 728.4055863 | AD61: =$F61*AD$59*AD$3*$G61 -> 742.973698 | AE61: =$F61*AE$59*AE$3*$G61 -> 757.8331719 | AF61: =$F61*AF$59*AF$3*$G61 -> 772.9898354 | AG61: =$F61*AG$59*AG$3*$G61 -> 788.4496321 | AH61: =$F61*AH$59*AH$3*$G61 -> 804.2186247 | AI61: =$F61*AI$59*AI$3*$G61 -> 820.3029972 | AJ61: =$F61*AJ$59*AJ$3*$G61 -> 0 | AK61: =$F61*AK$59*AK$3*$G61 -> 0 | AL61: =$F61*AL$59*AL$3*$G61 -> 0 | AM61: =$F61*AM$59*AM$3*$G61 -> 0 | AN61: =$F61*AN$59*AN$3*$G61 -> 0 | AO61: =$F61*AO$59*AO$3*$G61 -> 0 | AP61: =$F61*AP$59*AP$3*$G61 -> 0 | AQ61: =$F61*AQ$59*AQ$3*$G61 -> 0 | AR61: =$F61*AR$59*AR$3*$G61 -> 0 | AS61: =$F61*AS$59*AS$3*$G61 -> 0 | AT61: =$F61*AT$59*AT$3*$G61 -> 0 | AU61: =$F61*AU$59*AU$3*$G61 -> 0 | AV61: =$F61*AV$59*AV$3*$G61 -> 0 | AW61: =$F61*AW$59*AW$3*$G61 -> 0 | AX61: =$F61*AX$59*AX$3*$G61 -> 0
B62: Insurance | E62: USD 000 | F62: =F21 -> 1017.062992 | G62: =G61 -> 1 | J62: =$F62*J$59*J$3*$G62 -> 0 | K62: =$F62*K$59*K$3*$G62 -> 1037.404252 | L62: =$F62*L$59*L$3*$G62 -> 1058.152337 | M62: =$F62*M$59*M$3*$G62 -> 1079.315384 | N62: =$F62*N$59*N$3*$G62 -> 1100.901691 | O62: =$F62*O$59*O$3*$G62 -> 1122.919725 | P62: =$F62*P$59*P$3*$G62 -> 1145.37812 | Q62: =$F62*Q$59*Q$3*$G62 -> 1168.285682 | R62: =$F62*R$59*R$3*$G62 -> 1191.651396 | S62: =$F62*S$59*S$3*$G62 -> 1215.484424 | T62: =$F62*T$59*T$3*$G62 -> 1239.794112 | U62: =$F62*U$59*U$3*$G62 -> 1264.589994 | V62: =$F62*V$59*V$3*$G62 -> 1289.881794 | W62: =$F62*W$59*W$3*$G62 -> 1315.67943 | X62: =$F62*X$59*X$3*$G62 -> 1341.993019 | Y62: =$F62*Y$59*Y$3*$G62 -> 1368.832879 | Z62: =$F62*Z$59*Z$3*$G62 -> 1396.209537 | AA62: =$F62*AA$59*AA$3*$G62 -> 1424.133727 | AB62: =$F62*AB$59*AB$3*$G62 -> 1452.616402 | AC62: =$F62*AC$59*AC$3*$G62 -> 1481.66873 | AD62: =$F62*AD$59*AD$3*$G62 -> 1511.302105 | AE62: =$F62*AE$59*AE$3*$G62 -> 1541.528147 | AF62: =$F62*AF$59*AF$3*$G62 -> 1572.35871 | AG62: =$F62*AG$59*AG$3*$G62 -> 1603.805884 | AH62: =$F62*AH$59*AH$3*$G62 -> 1635.882001 | AI62: =$F62*AI$59*AI$3*$G62 -> 1668.599641 | AJ62: =$F62*AJ$59*AJ$3*$G62 -> 0 | AK62: =$F62*AK$59*AK$3*$G62 -> 0 | AL62: =$F62*AL$59*AL$3*$G62 -> 0 | AM62: =$F62*AM$59*AM$3*$G62 -> 0 | AN62: =$F62*AN$59*AN$3*$G62 -> 0 | AO62: =$F62*AO$59*AO$3*$G62 -> 0 | AP62: =$F62*AP$59*AP$3*$G62 -> 0 | AQ62: =$F62*AQ$59*AQ$3*$G62 -> 0 | AR62: =$F62*AR$59*AR$3*$G62 -> 0 | AS62: =$F62*AS$59*AS$3*$G62 -> 0 | AT62: =$F62*AT$59*AT$3*$G62 -> 0 | AU62: =$F62*AU$59*AU$3*$G62 -> 0 | AV62: =$F62*AV$59*AV$3*$G62 -> 0 | AW62: =$F62*AW$59*AW$3*$G62 -> 0 | AX62: =$F62*AX$59*AX$3*$G62 -> 0
C63: Total Operating Cost | E63: USD 000 | J63: =SUM(J60:J62) -> 0 | K63: =SUM(K60:K62) -> 4446.742012 | L63: 4535.676852 | M63: 4626.390389 | N63: 4718.918197 | O63: 4813.296561 | P63: 4909.562492 | Q63: 5007.753742 | R63: 5107.908817 | S63: 5210.066993 | T63: 5314.268333 | U63: 5420.5537 | V63: 5528.964774 | W63: 5639.544069 | X63: 5752.33495 | Y63: 5867.381649 | Z63: 5984.729282 | AA63: 6104.423868 | AB63: 6226.512345 | AC63: 6351.042592 | AD63: 6478.063444 | AE63: 6607.624713 | AF63: 6739.777207 | AG63: 6874.572751 | AH63: 7012.064207 | AI63: 7152.305491 | AJ63: 0 | AK63: 0 | AL63: 0 | AM63: 0 | AN63: 0 | AO63: 0 | AP63: 0 | AQ63: 0 | AR63: 0 | AS63: 0 | AT63: 0 | AU63: 0 | AV63: 0 | AW63: 0 | AX63: 0
B65: PPA Price without Inflation | E65: USD/MWH | F65: =F23 -> 40.25130612 | J65: =$F$65 -> 40.25130612 | K65: =$F$65 -> 40.25130612 | L65: 40.25130612 | M65: 40.25130612 | N65: 40.25130612 | O65: 40.25130612 | P65: 40.25130612 | Q65: 40.25130612 | R65: 40.25130612 | S65: 40.25130612 | T65: 40.25130612 | U65: 40.25130612 | V65: 40.25130612 | W65: 40.25130612 | X65: 40.25130612 | Y65: 40.25130612 | Z65: 40.25130612 | AA65: 40.25130612 | AB65: 40.25130612 | AC65: 40.25130612 | AD65: 40.25130612 | AE65: 40.25130612 | AF65: 40.25130612 | AG65: 40.25130612 | AH65: 40.25130612 | AI65: 40.25130612 | AJ65: 40.25130612 | AK65: 40.25130612 | AL65: 40.25130612 | AM65: 40.25130612 | AN65: 40.25130612 | AO65: 40.25130612 | AP65: 40.25130612 | AQ65: 40.25130612 | AR65: 40.25130612 | AS65: 40.25130612 | AT65: 40.25130612 | AU65: 40.25130612 | AV65: 40.25130612 | AW65: 40.25130612 | AX65: 40.25130612
B66: Inflation Index | E66: Index | F66: =F24 -> TRUE | J66: =IF($F$66,J59,1) -> 1 | K66: =IF($F$66,K59,1) -> 1.02 | L66: 1.0404 | M66: 1.061208 | N66: 1.08243216 | O66: 1.104080803 | P66: 1.126162419 | Q66: 1.148685668 | R66: 1.171659381 | S66: 1.195092569 | T66: 1.21899442 | U66: 1.243374308 | V66: 1.268241795 | W66: 1.29360663 | X66: 1.319478763 | Y66: 1.345868338 | Z66: 1.372785705 | AA66: 1.400241419 | AB66: 1.428246248 | AC66: 1.456811173 | AD66: 1.485947396 | AE66: 1.515666344 | AF66: 1.545979671 | AG66: 1.576899264 | AH66: 1.608437249 | AI66: 1.640605994 | AJ66: 1.673418114 | AK66: 1.706886477 | AL66: 1.741024206 | AM66: 1.77584469 | AN66: 1.811361584 | AO66: 1.847588816 | AP66: 1.884540592 | AQ66: 1.922231404 | AR66: 1.960676032 | AS66: 1.999889553 | AT66: 2.039887344 | AU66: 2.080685091 | AV66: 2.122298792 | AW66: 2.164744768 | AX66: 2.208039664
B67: PPA Price after Inflation | E67: USD/MWH | J67: =J65*J66 -> 40.25130612 | K67: =K65*K66 -> 41.05633224 | L67: 41.87745889 | M67: 42.71500807 | N67: 43.56930823 | O67: 44.44069439 | P67: 45.32950828 | Q67: 46.23609845 | R67: 47.16082042 | S67: 48.10403682 | T67: 49.06611756 | U67: 50.04743991 | V67: 51.04838871 | W67: 52.06935648 | X67: 53.11074361 | Y67: 54.17295849 | Z67: 55.25641766 | AA67: 56.36154601 | AB67: 57.48877693 | AC67: 58.63855247 | AD67: 59.81132352 | AE67: 61.00754999 | AF67: 62.22770099 | AG67: 63.47225501 | AH67: 64.74170011 | AI67: 66.03653411 | AJ67: 67.35726479 | AK67: 68.70441009 | AL67: 70.07849829 | AM67: 71.48006825 | AN67: 72.90966962 | AO67: 74.36786301 | AP67: 75.85522027 | AQ67: 77.37232468 | AR67: 78.91977117 | AS67: 80.4981666 | AT67: 82.10812993 | AU67: 83.75029253 | AV67: 85.42529838 | AW67: 87.13380434 | AX67: 88.87648043
B68: Revenues | E68: USD 000 | J68: =J67*J54/1000 -> 0 | K68: =K67*K54/1000 -> 58349.03025 | L68: 59278.89527 | M68: 60223.57886 | N68: 61183.31717 | O68: 62158.35012 | P68: 63148.92143 | Q68: 64155.27875 | R68: 65177.67363 | S68: 66216.36165 | T68: 67271.60248 | U68: 68343.65989 | V68: 69432.80188 | W68: 70539.30071 | X68: 71663.43299 | Y68: 72805.47973 | Z68: 73965.72642 | AA68: 75144.4631 | AB68: 76341.98442 | AC68: 77558.58975 | AD68: 78794.58322 | AE68: 80050.27378 | AF68: 81325.97536 | AG68: 82622.00684 | AH68: 83938.69221 | AI68: 85276.36061 | AJ68: 0 | AK68: 0 | AL68: 0 | AM68: 0 | AN68: 0 | AO68: 0 | AP68: 0 | AQ68: 0 | AR68: 0 | AS68: 0 | AT68: 0 | AU68: 0 | AV68: 0 | AW68: 0 | AX68: 0
A70: Pre-tax Cash Flow | E70: USD 000's
B71: EBITDA | J71: =J68-J63 -> 0 | K71: =K68-K63 -> 53902.28824 | L71: 54743.21842 | M71: 55597.18848 | N71: 56464.39898 | O71: 57345.05356 | P71: 58239.35894 | Q71: 59147.525 | R71: 60069.76481 | S71: 61006.29466 | T71: 61957.33414 | U71: 62923.10619 | V71: 63903.8371 | W71: 64899.75664 | X71: 65911.09804 | Y71: 66938.09808 | Z71: 67980.99714 | AA71: 69040.03923 | AB71: 70115.47208 | AC71: 71207.54716 | AD71: 72316.51977 | AE71: 73442.64907 | AF71: 74586.19815 | AG71: 75747.43409 | AH71: 76926.628 | AI71: 78124.05512 | AJ71: 0 | AK71: 0 | AL71: 0 | AM71: 0 | AN71: 0 | AO71: 0 | AP71: 0 | AQ71: 0 | AR71: 0 | AS71: 0 | AT71: 0 | AU71: 0 | AV71: 0 | AW71: 0 | AX71: 0
B72: CAPEX | J72: =J57 -> 472348.5937
B73: Working Capital Changes
C74: Pre-tax Free Cash Flow | J74: =J71-J72-J73 -> -472348.5937 | K74: =K71-K72-K73 -> 53902.28824 | L74: 54743.21842 | M74: 55597.18848 | N74: 56464.39898 | O74: 57345.05356 | P74: 58239.35894 | Q74: 59147.525 | R74: 60069.76481 | S74: 61006.29466 | T74: 61957.33414 | U74: 62923.10619 | V74: 63903.8371 | W74: 64899.75664 | X74: 65911.09804 | Y74: 66938.09808 | Z74: 67980.99714 | AA74: 69040.03923 | AB74: 70115.47208 | AC74: 71207.54716 | AD74: 72316.51977 | AE74: 73442.64907 | AF74: 74586.19815 | AG74: 75747.43409 | AH74: 76926.628 | AI74: 78124.05512 | AJ74: 0 | AK74: 0 | AL74: 0 | AM74: 0 | AN74: 0 | AO74: 0 | AP74: 0 | AQ74: 0 | AR74: 0 | AS74: 0 | AT74: 0 | AU74: 0 | AV74: 0 | AW74: 0 | AX74: 0
C75: Pre-tax IRR | F75: =IRR(74:74) -> 0.1197753169
D76: NPV Target IRR | E76: =F25 -> 0.1 | F76: =NPV(E76,J74:AX74) -> 72244.47532
A78: Depreciation and taxes
B79: Plant Cost without Financing | E79: USD 000's | J79: =G79+J72 -> 472348.5937 | K79: =J79+K72 -> 472348.5937 | L79: 472348.5937 | M79: 472348.5937 | N79: 472348.5937 | O79: 472348.5937 | P79: 472348.5937 | Q79: 472348.5937 | R79: 472348.5937 | S79: 472348.5937 | T79: 472348.5937 | U79: 472348.5937 | V79: 472348.5937 | W79: 472348.5937 | X79: 472348.5937 | Y79: 472348.5937 | Z79: 472348.5937 | AA79: 472348.5937 | AB79: 472348.5937 | AC79: 472348.5937 | AD79: 472348.5937 | AE79: 472348.5937 | AF79: 472348.5937 | AG79: 472348.5937 | AH79: 472348.5937 | AI79: 472348.5937 | AJ79: 472348.5937 | AK79: 472348.5937 | AL79: 472348.5937 | AM79: 472348.5937 | AN79: 472348.5937 | AO79: 472348.5937 | AP79: 472348.5937 | AQ79: 472348.5937 | AR79: 472348.5937 | AS79: 472348.5937 | AT79: 472348.5937 | AU79: 472348.5937 | AV79: 472348.5937 | AW79: 472348.5937 | AX79: 472348.5937
B80: Depreciation Expense | E80: USD 000's | F80: =F29 -> 0.05 | G80: =SUM(J80:AX80)=F17 -> TRUE | J80: =MIN($F$80*J79*J3,G82) -> 0 | K80: =MIN($F$80*K79*K3,J82) -> 23617.42968 | L80: 23617.42968 | M80: 23617.42968 | N80: 23617.42968 | O80: 23617.42968 | P80: 23617.42968 | Q80: 23617.42968 | R80: 23617.42968 | S80: 23617.42968 | T80: 23617.42968 | U80: 23617.42968 | V80: 23617.42968 | W80: 23617.42968 | X80: 23617.42968 | Y80: 23617.42968 | Z80: 23617.42968 | AA80: 23617.42968 | AB80: 23617.42968 | AC80: 23617.42968 | AD80: 23617.42968 | AE80: 0 | AF80: 0 | AG80: 0 | AH80: 0 | AI80: 0 | AJ80: 0 | AK80: 0 | AL80: 0 | AM80: 0 | AN80: 0 | AO80: 0 | AP80: 0 | AQ80: 0 | AR80: 0 | AS80: 0 | AT80: 0 | AU80: 0 | AV80: 0 | AW80: 0 | AX80: 0
B81: Accumulated Depreciation | E81: USD 000's | J81: =G81+J80 -> 0 | K81: =J81+K80 -> 23617.42968 | L81: 47234.85937 | M81: 70852.28905 | N81: 94469.71873 | O81: 118087.1484 | P81: 141704.5781 | Q81: 165322.0078 | R81: 188939.4375 | S81: 212556.8672 | T81: 236174.2968 | U81: 259791.7265 | V81: 283409.1562 | W81: 307026.5859 | X81: 330644.0156 | Y81: 354261.4453 | Z81: 377878.8749 | AA81: 401496.3046 | AB81: 425113.7343 | AC81: 448731.164 | AD81: 472348.5937 | AE81: 472348.5937 | AF81: 472348.5937 | AG81: 472348.5937 | AH81: 472348.5937 | AI81: 472348.5937 | AJ81: 472348.5937 | AK81: 472348.5937 | AL81: 472348.5937 | AM81: 472348.5937 | AN81: 472348.5937 | AO81: 472348.5937 | AP81: 472348.5937 | AQ81: 472348.5937 | AR81: 472348.5937 | AS81: 472348.5937 | AT81: 472348.5937 | AU81: 472348.5937 | AV81: 472348.5937 | AW81: 472348.5937 | AX81: 472348.5937
B82: Net Plant | E82: USD 000's | J82: =J79-J81 -> 472348.5937 | K82: =K79-K81 -> 448731.164 | L82: 425113.7343 | M82: 401496.3046 | N82: 377878.8749 | O82: 354261.4453 | P82: 330644.0156 | Q82: 307026.5859 | R82: 283409.1562 | S82: 259791.7265 | T82: 236174.2968 | U82: 212556.8672 | V82: 188939.4375 | W82: 165322.0078 | X82: 141704.5781 | Y82: 118087.1484 | Z82: 94469.71873 | AA82: 70852.28905 | AB82: 47234.85937 | AC82: 23617.42968 | AD82: 0 | AE82: 0 | AF82: 0 | AG82: 0 | AH82: 0 | AI82: 0 | AJ82: 0 | AK82: 0 | AL82: 0 | AM82: 0 | AN82: 0 | AO82: 0 | AP82: 0 | AQ82: 0 | AR82: 0 | AS82: 0 | AT82: 0 | AU82: 0 | AV82: 0 | AW82: 0 | AX82: 0
B83: Depreciation Rate | E83: % | K83: =K80/K79 -> 0.05 | L83: =L80/L79 -> 0.05 | M83: 0.05 | N83: 0.05 | O83: 0.05 | P83: 0.05 | Q83: 0.05 | R83: 0.05 | S83: 0.05 | T83: 0.05 | U83: 0.05 | V83: 0.05 | W83: 0.05 | X83: 0.05 | Y83: 0.05 | Z83: 0.05 | AA83: 0.05 | AB83: 0.05 | AC83: 0.05 | AD83: 0.05 | AE83: 0 | AF83: 0 | AG83: 0 | AH83: 0 | AI83: 0 | AJ83: 0 | AK83: 0 | AL83: 0 | AM83: 0 | AN83: 0 | AO83: 0 | AP83: 0 | AQ83: 0 | AR83: 0 | AS83: 0 | AT83: 0 | AU83: 0 | AV83: 0 | AW83: 0 | AX83: 0
B85: EBIT | E85: USD 000's | J85: =J71-J80 -> 0 | K85: =K71-K80 -> 30284.85856 | L85: 31125.78874 | M85: 31979.75879 | N85: 32846.96929 | O85: 33727.62387 | P85: 34621.92926 | Q85: 35530.09532 | R85: 36452.33513 | S85: 37388.86498 | T85: 38339.90446 | U85: 39305.6765 | V85: 40286.40742 | W85: 41282.32696 | X85: 42293.66836 | Y85: 43320.6684 | Z85: 44363.56746 | AA85: 45422.60955 | AB85: 46498.04239 | AC85: 47590.11748 | AD85: 48699.09009 | AE85: 73442.64907 | AF85: 74586.19815 | AG85: 75747.43409 | AH85: 76926.628 | AI85: 78124.05512 | AJ85: 0 | AK85: 0 | AL85: 0 | AM85: 0 | AN85: 0 | AO85: 0 | AP85: 0 | AQ85: 0 | AR85: 0 | AS85: 0 | AT85: 0 | AU85: 0 | AV85: 0 | AW85: 0 | AX85: 0
B86: Taxes on EBIT | E86: USD 000's | F86: =F30 -> 0.15 | J86: =MAX(J85*$F$86,0) -> 0 | K86: =MAX(K85*$F$86,0) -> 4542.728783 | L86: 4668.868311 | M86: 4796.963819 | N86: 4927.045394 | O86: 5059.143581 | P86: 5193.289389 | Q86: 5329.514298 | R86: 5467.850269 | S86: 5608.329746 | T86: 5750.985669 | U86: 5895.851475 | V86: 6042.961113 | W86: 6192.349044 | X86: 6344.050254 | Y86: 6498.10026 | Z86: 6654.535119 | AA86: 6813.391432 | AB86: 6974.706359 | AC86: 7138.517622 | AD86: 7304.863513 | AE86: 11016.39736 | AF86: 11187.92972 | AG86: 11362.11511 | AH86: 11538.9942 | AI86: 11718.60827 | AJ86: 0 | AK86: 0 | AL86: 0 | AM86: 0 | AN86: 0 | AO86: 0 | AP86: 0 | AQ86: 0 | AR86: 0 | AS86: 0 | AT86: 0 | AU86: 0 | AV86: 0 | AW86: 0 | AX86: 0
A88: After Tax Cash Flow
C89: Pre-tax cash Flow | J89: =J74 -> -472348.5937 | K89: =K74 -> 53902.28824 | L89: 54743.21842 | M89: 55597.18848 | N89: 56464.39898 | O89: 57345.05356 | P89: 58239.35894 | Q89: 59147.525 | R89: 60069.76481 | S89: 61006.29466 | T89: 61957.33414 | U89: 62923.10619 | V89: 63903.8371 | W89: 64899.75664 | X89: 65911.09804 | Y89: 66938.09808 | Z89: 67980.99714 | AA89: 69040.03923 | AB89: 70115.47208 | AC89: 71207.54716 | AD89: 72316.51977 | AE89: 73442.64907 | AF89: 74586.19815 | AG89: 75747.43409 | AH89: 76926.628 | AI89: 78124.05512 | AJ89: 0 | AK89: 0 | AL89: 0 | AM89: 0 | AN89: 0 | AO89: 0 | AP89: 0 | AQ89: 0 | AR89: 0 | AS89: 0 | AT89: 0 | AU89: 0 | AV89: 0 | AW89: 0 | AX89: 0
C90: Less taxes | J90: =J86 -> 0 | K90: =K86 -> 4542.728783 | L90: 4668.868311 | M90: 4796.963819 | N90: 4927.045394 | O90: 5059.143581 | P90: 5193.289389 | Q90: 5329.514298 | R90: 5467.850269 | S90: 5608.329746 | T90: 5750.985669 | U90: 5895.851475 | V90: 6042.961113 | W90: 6192.349044 | X90: 6344.050254 | Y90: 6498.10026 | Z90: 6654.535119 | AA90: 6813.391432 | AB90: 6974.706359 | AC90: 7138.517622 | AD90: 7304.863513 | AE90: 11016.39736 | AF90: 11187.92972 | AG90: 11362.11511 | AH90: 11538.9942 | AI90: 11718.60827 | AJ90: 0 | AK90: 0 | AL90: 0 | AM90: 0 | AN90: 0 | AO90: 0 | AP90: 0 | AQ90: 0 | AR90: 0 | AS90: 0 | AT90: 0 | AU90: 0 | AV90: 0 | AW90: 0 | AX90: 0
C91: After Tax Cash Flow | J91: =J89-J90 -> -472348.5937 | K91: =K89-K90 -> 49359.55946 | L91: 50074.35011 | M91: 50800.22466 | N91: 51537.35358 | O91: 52285.90997 | P91: 53046.06955 | Q91: 53818.01071 | R91: 54601.91454 | S91: 55397.96491 | T91: 56206.34847 | U91: 57027.25471 | V91: 57860.87599 | W91: 58707.4076 | X91: 59567.04779 | Y91: 60439.99782 | Z91: 61326.46202 | AA91: 62226.6478 | AB91: 63140.76572 | AC91: 64069.02954 | AD91: 65011.65626 | AE91: 62426.25171 | AF91: 63398.26843 | AG91: 64385.31897 | AH91: 65387.6338 | AI91: 66405.44685 | AJ91: 0 | AK91: 0 | AL91: 0 | AM91: 0 | AN91: 0 | AO91: 0 | AP91: 0 | AQ91: 0 | AR91: 0 | AS91: 0 | AT91: 0 | AU91: 0 | AV91: 0 | AW91: 0 | AX91: 0
C92: After Tax Project IRR | F92: =IRR(91:91) -> 0.1068764874 | G92: =NA() -> 
K93: =IF(K3,K4,NA()) -> 2020-01-01 | L93: =IF(L3,L4,NA()) -> 2021-01-01 | M93: 2022-01-01 | N93: 2023-01-01 | O93: 2024-01-01 | P93: 2025-01-01 | Q93: 2026-01-01 | R93: 2027-01-01 | S93: 2028-01-01 | T93: 2029-01-01 | U93: 2030-01-01 | V93: 2031-01-01 | W93: 2032-01-01 | X93: 2033-01-01 | Y93: 2034-01-01 | Z93: 2035-01-01 | AA93: 2036-01-01 | AB93: 2037-01-01 | AC93: 2038-01-01 | AD93: 2039-01-01 | AE93: 2040-01-01 | AF93: 2041-01-01 | AG93: 2042-01-01 | AH93: 2043-01-01 | AI93: 2044-01-01
C94: ROIC | K94: =IF(J82,(K85-K86)/J82) -> 0.05449816114 | L94: =IF(K82,(L85-L86)/K82) -> 0.05895940053 | M94: 0.06394240595 | N94: 0.06953967839 | O94: 0.07586685098 | P94: 0.08307039974 | Q94: 0.09133865911 | R94: 0.1009179214 | S94: 0.112136586 | T94: 0.1254424813 | U94: 0.1414625786 | V94: 0.161102517 | W94: 0.1857207706 | X94: 0.217452102 | Y94: 0.2598544707 | Z94: 0.3193322292 | AA94: 0.4086941153 | AB94: 0.5578272285 | AC94: 0.8563929352 | AD94: 1.752698203 | AE94: FALSE | AF94: FALSE | AG94: FALSE | AH94: FALSE | AI94: FALSE | AJ94: FALSE | AK94: FALSE | AL94: FALSE | AM94: FALSE | AN94: FALSE | AO94: FALSE | AP94: FALSE | AQ94: FALSE | AR94: FALSE | AS94: FALSE | AT94: FALSE | AU94: FALSE | AV94: FALSE | AW94: FALSE | AX94: FALSE
A96: Debt Sizing and Sources and Uses
B97: Uses of Funds
C98: Capital Expenditures | J98: =J72 -> 472348.5937
C99: IDC
C100: Fees | F100: =F39 -> 0 | J100: 0
C101: DSRA | J101: 0
D102: Total | J102: =SUM(J98:J101) -> 472348.5937
B104: Sources of Funds
C105: Debt Financing | F105: =F34 -> 0.75 | J105: =F105*J102 -> 354261.4453
C106: Equity Financing | J106: =J102-J105 -> 118087.1484
D107: Total | J107: =SUM(J105:J106) -> 472348.5937
A109: Debt Schedule
B110: Debt Amount | F110: =J105 -> 354261.4453 | K110: =$F$110 -> 354261.4453 | L110: =$F$110 -> 354261.4453 | M110: 354261.4453 | N110: 354261.4453 | O110: 354261.4453 | P110: 354261.4453 | Q110: 354261.4453 | R110: 354261.4453 | S110: 354261.4453 | T110: 354261.4453 | U110: 354261.4453 | V110: 354261.4453 | W110: 354261.4453 | X110: 354261.4453 | Y110: 354261.4453 | Z110: 354261.4453 | AA110: 354261.4453 | AB110: 354261.4453 | AC110: 354261.4453 | AD110: 354261.4453 | AE110: 354261.4453 | AF110: 354261.4453 | AG110: 354261.4453 | AH110: 354261.4453 | AI110: 354261.4453 | AJ110: 354261.4453 | AK110: 354261.4453 | AL110: 354261.4453 | AM110: 354261.4453 | AN110: 354261.4453 | AO110: 354261.4453 | AP110: 354261.4453 | AQ110: 354261.4453 | AR110: 354261.4453 | AS110: 354261.4453 | AT110: 354261.4453 | AU110: 354261.4453 | AV110: 354261.4453 | AW110: 354261.4453 | AX110: 354261.4453
B112: Repayment Percent | J112: =LOOKUP(J2,43:43,46:46) -> 0 | K112: =LOOKUP(K2,43:43,45:45) -> 0.05182506937 | L112: =LOOKUP(L2,43:43,45:45) -> 0.05363894679 | M112: =LOOKUP(M2,43:43,45:45) -> 0.05551630993 | N112: =LOOKUP(N2,43:43,45:45) -> 0.05745938078 | O112: =LOOKUP(O2,43:43,45:45) -> 0.05947045911 | P112: =LOOKUP(P2,43:43,45:45) -> 0.06155192518 | Q112: =LOOKUP(Q2,43:43,45:45) -> 0.06370624256 | R112: =LOOKUP(R2,43:43,45:45) -> 0.06593596105 | S112: =LOOKUP(S2,43:43,45:45) -> 0.06824371968 | T112: =LOOKUP(T2,43:43,45:45) -> 0.07063224987 | U112: =LOOKUP(U2,43:43,45:45) -> 0.07310437862 | V112: =LOOKUP(V2,43:43,45:45) -> 0.07566303187 | W112: =LOOKUP(W2,43:43,45:45) -> 0.07831123798 | X112: =LOOKUP(X2,43:43,45:45) -> 0.08105213131 | Y112: =LOOKUP(Y2,43:43,45:45) -> 0.08388895591 | Z112: =LOOKUP(Z2,43:43,45:45) -> FALSE | AA112: =LOOKUP(AA2,43:43,45:45) -> FALSE | AB112: =LOOKUP(AB2,43:43,45:45) -> FALSE | AC112: =LOOKUP(AC2,43:43,45:45) -> FALSE | AD112: =LOOKUP(AD2,43:43,45:45) -> FALSE | AE112: =LOOKUP(AE2,43:43,45:45) -> FALSE | AF112: =LOOKUP(AF2,43:43,45:45) -> FALSE | AG112: =LOOKUP(AG2,43:43,45:45) -> FALSE | AH112: =LOOKUP(AH2,43:43,45:45) -> FALSE | AI112: =LOOKUP(AI2,43:43,45:45) -> FALSE | AJ112: =LOOKUP(AJ2,43:43,45:45) -> FALSE | AK112: =LOOKUP(AK2,43:43,45:45) -> FALSE | AL112: =LOOKUP(AL2,43:43,45:45) -> FALSE | AM112: =LOOKUP(AM2,43:43,45:45) -> FALSE | AN112: =LOOKUP(AN2,43:43,45:45) -> FALSE | AO112: =LOOKUP(AO2,43:43,45:45) -> FALSE | AP112: =LOOKUP(AP2,43:43,45:45) -> FALSE | AQ112: =LOOKUP(AQ2,43:43,45:45) -> FALSE | AR112: =LOOKUP(AR2,43:43,45:45) -> FALSE | AS112: =LOOKUP(AS2,43:43,45:45) -> FALSE | AT112: =LOOKUP(AT2,43:43,45:45) -> FALSE | AU112: =LOOKUP(AU2,43:43,45:45) -> FALSE | AV112: =LOOKUP(AV2,43:43,45:45) -> FALSE | AW112: =LOOKUP(AW2,43:43,45:45) -> FALSE | AX112: =LOOKUP(AX2,43:43,45:45) -> FALSE
B113: Flat Debt Repayment | F113: =F35 -> 15 | K113: =K110/$F$113 -> 23617.42968 | L113: =L110/$F$113 -> 23617.42968 | M113: 23617.42968 | N113: 23617.42968 | O113: 23617.42968 | P113: 23617.42968 | Q113: 23617.42968 | R113: 23617.42968 | S113: 23617.42968 | T113: 23617.42968 | U113: 23617.42968 | V113: 23617.42968 | W113: 23617.42968 | X113: 23617.42968 | Y113: 23617.42968 | Z113: 23617.42968 | AA113: 23617.42968 | AB113: 23617.42968 | AC113: 23617.42968 | AD113: 23617.42968 | AE113: 23617.42968 | AF113: 23617.42968 | AG113: 23617.42968 | AH113: 23617.42968 | AI113: 23617.42968 | AJ113: 23617.42968 | AK113: 23617.42968 | AL113: 23617.42968 | AM113: 23617.42968 | AN113: 23617.42968 | AO113: 23617.42968 | AP113: 23617.42968 | AQ113: 23617.42968 | AR113: 23617.42968 | AS113: 23617.42968 | AT113: 23617.42968 | AU113: 23617.42968 | AV113: 23617.42968 | AW113: 23617.42968 | AX113: 23617.42968
B114: Mortgage without Inflation | F114: =F125 -> 0.035 | K114: =PMT($F$114,Model!$F$113,-Model!K110)-K125 -> 18359.62397 | L114: =PMT($F$114,Model!$F$113,-Model!L110)-L125 -> 19002.21081 | M114: =PMT($F$114,Model!$F$113,-Model!M110)-M125 -> 19667.28819 | N114: =PMT($F$114,Model!$F$113,-Model!N110)-N125 -> 20355.64328 | O114: =PMT($F$114,Model!$F$113,-Model!O110)-O125 -> 21068.09079 | P114: =PMT($F$114,Model!$F$113,-Model!P110)-P125 -> 21805.47397 | Q114: =PMT($F$114,Model!$F$113,-Model!Q110)-Q125 -> 22568.66556 | R114: =PMT($F$114,Model!$F$113,-Model!R110)-R125 -> 23358.56885 | S114: =PMT($F$114,Model!$F$113,-Model!S110)-S125 -> 24176.11876 | T114: =PMT($F$114,Model!$F$113,-Model!T110)-T125 -> 25022.28292 | U114: =PMT($F$114,Model!$F$113,-Model!U110)-U125 -> 25898.06282 | V114: =PMT($F$114,Model!$F$113,-Model!V110)-V125 -> 26804.49502 | W114: =PMT($F$114,Model!$F$113,-Model!W110)-W125 -> 27742.65235 | X114: =PMT($F$114,Model!$F$113,-Model!X110)-X125 -> 28713.64518 | Y114: =PMT($F$114,Model!$F$113,-Model!Y110)-Y125 -> 29718.62276 | Z114: =PMT($F$114,Model!$F$113,-Model!Z110)-Z125 -> 30758.77456 | AA114: =PMT($F$114,Model!$F$113,-Model!AA110)-AA125 -> 30758.77456 | AB114: =PMT($F$114,Model!$F$113,-Model!AB110)-AB125 -> 30758.77456 | AC114: =PMT($F$114,Model!$F$113,-Model!AC110)-AC125 -> 30758.77456 | AD114: =PMT($F$114,Model!$F$113,-Model!AD110)-AD125 -> 30758.77456 | AE114: =PMT($F$114,Model!$F$113,-Model!AE110)-AE125 -> 30758.77456 | AF114: =PMT($F$114,Model!$F$113,-Model!AF110)-AF125 -> 30758.77456 | AG114: =PMT($F$114,Model!$F$113,-Model!AG110)-AG125 -> 30758.77456 | AH114: =PMT($F$114,Model!$F$113,-Model!AH110)-AH125 -> 30758.77456 | AI114: =PMT($F$114,Model!$F$113,-Model!AI110)-AI125 -> 30758.77456 | AJ114: =PMT($F$114,Model!$F$113,-Model!AJ110)-AJ125 -> 30758.77456 | AK114: =PMT($F$114,Model!$F$113,-Model!AK110)-AK125 -> 30758.77456 | AL114: =PMT($F$114,Model!$F$113,-Model!AL110)-AL125 -> 30758.77456 | AM114: =PMT($F$114,Model!$F$113,-Model!AM110)-AM125 -> 30758.77456 | AN114: =PMT($F$114,Model!$F$113,-Model!AN110)-AN125 -> 30758.77456 | AO114: =PMT($F$114,Model!$F$113,-Model!AO110)-AO125 -> 30758.77456 | AP114: =PMT($F$114,Model!$F$113,-Model!AP110)-AP125 -> 30758.77456 | AQ114: =PMT($F$114,Model!$F$113,-Model!AQ110)-AQ125 -> 30758.77456 | AR114: =PMT($F$114,Model!$F$113,-Model!AR110)-AR125 -> 30758.77456 | AS114: =PMT($F$114,Model!$F$113,-Model!AS110)-AS125 -> 30758.77456 | AT114: =PMT($F$114,Model!$F$113,-Model!AT110)-AT125 -> 30758.77456 | AU114: =PMT($F$114,Model!$F$113,-Model!AU110)-AU125 -> 30758.77456 | AV114: =PMT($F$114,Model!$F$113,-Model!AV110)-AV125 -> 30758.77456 | AW114: =PMT($F$114,Model!$F$113,-Model!AW110)-AW125 -> 30758.77456 | AX114: =PMT($F$114,Model!$F$113,-Model!AX110)-AX125 -> 30758.77456
B115: Repayment with Inflation
B117: Repayment Applied | F117: 1 | K117: =K112*$J$121 -> 18359.62397 | L117: =L112*$J$121 -> 19002.21081 | M117: 19667.28819 | N117: 20355.64328 | O117: 21068.09079 | P117: 21805.47397 | Q117: 22568.66556 | R117: 23358.56885 | S117: 24176.11876 | T117: 25022.28292 | U117: 25898.06282 | V117: 26804.49502 | W117: 27742.65235 | X117: 28713.64518 | Y117: 29718.62276 | Z117: 0 | AA117: 0 | AB117: 0 | AC117: 0 | AD117: 0 | AE117: 0 | AF117: 0 | AG117: 0 | AH117: 0 | AI117: 0 | AJ117: 0 | AK117: 0 | AL117: 0 | AM117: 0 | AN117: 0 | AO117: 0 | AP117: 0 | AQ117: 0 | AR117: 0 | AS117: 0 | AT117: 0 | AU117: 0 | AV117: 0 | AW117: 0 | AX117: 0
B119: Debt Balance
C120: Opening Balance | J120: =H123 -> 0 | K120: =J123 -> 354261.4453 | L120: 335901.8213 | M120: 316899.6105 | N120: 297232.3223 | O120: 276876.679 | P120: 255808.5882 | Q120: 234003.1142 | R120: 211434.4487 | S120: 188075.8798 | T120: 163899.7611 | U120: 138877.4781 | V120: 112979.4153 | W120: 86174.92029 | X120: 58432.26794 | Y120: 29718.62276 | Z120: 0 | AA120: 0 | AB120: 0 | AC120: 0 | AD120: 0 | AE120: 0 | AF120: 0 | AG120: 0 | AH120: 0 | AI120: 0 | AJ120: 0 | AK120: 0 | AL120: 0 | AM120: 0 | AN120: 0 | AO120: 0 | AP120: 0 | AQ120: 0 | AR120: 0 | AS120: 0 | AT120: 0 | AU120: 0 | AV120: 0 | AW120: 0 | AX120: 0
C121: Add: Draws | J121: =J105 -> 354261.4453 | K121: =K105 -> 0 | L121: 0 | M121: 0 | N121: 0 | O121: 0 | P121: 0 | Q121: 0 | R121: 0 | S121: 0 | T121: 0 | U121: 0 | V121: 0 | W121: 0 | X121: 0 | Y121: 0 | Z121: 0 | AA121: 0 | AB121: 0 | AC121: 0 | AD121: 0 | AE121: 0 | AF121: 0 | AG121: 0 | AH121: 0 | AI121: 0 | AJ121: 0 | AK121: 0 | AL121: 0 | AM121: 0 | AN121: 0 | AO121: 0 | AP121: 0 | AQ121: 0 | AR121: 0 | AS121: 0 | AT121: 0 | AU121: 0 | AV121: 0 | AW121: 0 | AX121: 0
C122: Less: Repayments | J122: =MIN(J117,J120) -> 0 | K122: =MIN(K117,K120) -> 18359.62397 | L122: 19002.21081 | M122: 19667.28819 | N122: 20355.64328 | O122: 21068.09079 | P122: 21805.47397 | Q122: 22568.66556 | R122: 23358.56885 | S122: 24176.11876 | T122: 25022.28292 | U122: 25898.06282 | V122: 26804.49502 | W122: 27742.65235 | X122: 28713.64518 | Y122: 29718.62276 | Z122: 0 | AA122: 0 | AB122: 0 | AC122: 0 | AD122: 0 | AE122: 0 | AF122: 0 | AG122: 0 | AH122: 0 | AI122: 0 | AJ122: 0 | AK122: 0 | AL122: 0 | AM122: 0 | AN122: 0 | AO122: 0 | AP122: 0 | AQ122: 0 | AR122: 0 | AS122: 0 | AT122: 0 | AU122: 0 | AV122: 0 | AW122: 0 | AX122: 0
C123: Closing Balance | J123: =J120+J121-J122 -> 354261.4453 | K123: =K120+K121-K122 -> 335901.8213 | L123: 316899.6105 | M123: 297232.3223 | N123: 276876.679 | O123: 255808.5882 | P123: 234003.1142 | Q123: 211434.4487 | R123: 188075.8798 | S123: 163899.7611 | T123: 138877.4781 | U123: 112979.4153 | V123: 86174.92029 | W123: 58432.26794 | X123: 29718.62276 | Y123: 0 | Z123: 0 | AA123: 0 | AB123: 0 | AC123: 0 | AD123: 0 | AE123: 0 | AF123: 0 | AG123: 0 | AH123: 0 | AI123: 0 | AJ123: 0 | AK123: 0 | AL123: 0 | AM123: 0 | AN123: 0 | AO123: 0 | AP123: 0 | AQ123: 0 | AR123: 0 | AS123: 0 | AT123: 0 | AU123: 0 | AV123: 0 | AW123: 0 | AX123: 0
C124: Fees
C125: Interest Expense | F125: =F37+F38 -> 0.035 | J125: =$F$125*J120 -> 0 | K125: =$F$125*K120 -> 12399.15058 | L125: 11756.56374 | M125: 11091.48637 | N125: 10403.13128 | O125: 9690.683765 | P125: 8953.300587 | Q125: 8190.108998 | R125: 7400.205703 | S125: 6582.655794 | T125: 5736.491637 | U125: 4860.711735 | V125: 3954.279536 | W125: 3016.12221 | X125: 2045.129378 | Y125: 1040.151797 | Z125: 0 | AA125: 0 | AB125: 0 | AC125: 0 | AD125: 0 | AE125: 0 | AF125: 0 | AG125: 0 | AH125: 0 | AI125: 0 | AJ125: 0 | AK125: 0 | AL125: 0 | AM125: 0 | AN125: 0 | AO125: 0 | AP125: 0 | AQ125: 0 | AR125: 0 | AS125: 0 | AT125: 0 | AU125: 0 | AV125: 0 | AW125: 0 | AX125: 0
C128: Interest Rate | J128: =$F$37+$F$38 -> 0.035 | K128: =$F$37+$F$38 -> 0.035 | L128: 0.035 | M128: 0.035 | N128: 0.035 | O128: 0.035 | P128: 0.035 | Q128: 0.035 | R128: 0.035 | S128: 0.035 | T128: 0.035 | U128: 0.035 | V128: 0.035 | W128: 0.035 | X128: 0.035 | Y128: 0.035 | Z128: 0.035 | AA128: 0.035 | AB128: 0.035 | AC128: 0.035 | AD128: 0.035 | AE128: 0.035 | AF128: 0.035 | AG128: 0.035 | AH128: 0.035 | AI128: 0.035 | AJ128: 0.035 | AK128: 0.035 | AL128: 0.035 | AM128: 0.035 | AN128: 0.035 | AO128: 0.035 | AP128: 0.035 | AQ128: 0.035 | AR128: 0.035 | AS128: 0.035 | AT128: 0.035 | AU128: 0.035 | AV128: 0.035 | AW128: 0.035 | AX128: 0.035
C130: Gross Fee Balance | J130: =J100 -> 0 | K130: =J130 -> 0 | L130: =K130 -> 0 | M130: 0 | N130: 0 | O130: 0 | P130: 0 | Q130: 0 | R130: 0 | S130: 0 | T130: 0 | U130: 0 | V130: 0 | W130: 0 | X130: 0 | Y130: 0 | Z130: 0 | AA130: 0 | AB130: 0 | AC130: 0 | AD130: 0 | AE130: 0 | AF130: 0 | AG130: 0 | AH130: 0 | AI130: 0 | AJ130: 0 | AK130: 0 | AL130: 0 | AM130: 0 | AN130: 0 | AO130: 0 | AP130: 0 | AQ130: 0 | AR130: 0 | AS130: 0 | AT130: 0 | AU130: 0 | AV130: 0 | AW130: 0 | AX130: 0
C131: Fee Rate | K131: =K83 -> 0.05 | L131: =L83 -> 0.05 | M131: 0.05 | N131: 0.05 | O131: 0.05 | P131: 0.05 | Q131: 0.05 | R131: 0.05 | S131: 0.05 | T131: 0.05 | U131: 0.05 | V131: 0.05 | W131: 0.05 | X131: 0.05 | Y131: 0.05 | Z131: 0.05 | AA131: 0.05 | AB131: 0.05 | AC131: 0.05 | AD131: 0.05 | AE131: 0 | AF131: 0 | AG131: 0 | AH131: 0 | AI131: 0 | AJ131: 0 | AK131: 0 | AL131: 0 | AM131: 0 | AN131: 0 | AO131: 0 | AP131: 0 | AQ131: 0 | AR131: 0 | AS131: 0 | AT131: 0 | AU131: 0 | AV131: 0 | AW131: 0 | AX131: 0
C132: Amortisation of Fees | K132: =K130*K131 -> 0 | L132: =L130*L131 -> 0 | M132: 0 | N132: 0 | O132: 0 | P132: 0 | Q132: 0 | R132: 0 | S132: 0 | T132: 0 | U132: 0 | V132: 0 | W132: 0 | X132: 0 | Y132: 0 | Z132: 0 | AA132: 0 | AB132: 0 | AC132: 0 | AD132: 0 | AE132: 0 | AF132: 0 | AG132: 0 | AH132: 0 | AI132: 0 | AJ132: 0 | AK132: 0 | AL132: 0 | AM132: 0 | AN132: 0 | AO132: 0 | AP132: 0 | AQ132: 0 | AR132: 0 | AS132: 0 | AT132: 0 | AU132: 0 | AV132: 0 | AW132: 0 | AX132: 0
C133: Net Fee Balance | J133: =J130 -> 0 | K133: =J133-K132 -> 0 | L133: =K133-L132 -> 0 | M133: 0 | N133: 0 | O133: 0 | P133: 0 | Q133: 0 | R133: 0 | S133: 0 | T133: 0 | U133: 0 | V133: 0 | W133: 0 | X133: 0 | Y133: 0 | Z133: 0 | AA133: 0 | AB133: 0 | AC133: 0 | AD133: 0 | AE133: 0 | AF133: 0 | AG133: 0 | AH133: 0 | AI133: 0 | AJ133: 0 | AK133: 0 | AL133: 0 | AM133: 0 | AN133: 0 | AO133: 0 | AP133: 0 | AQ133: 0 | AR133: 0 | AS133: 0 | AT133: 0 | AU133: 0 | AV133: 0 | AW133: 0 | AX133: 0
C134: Debt Cash Flow | J134: =J125+J122-J121 -> -354261.4453 | K134: =K125+K122-K121 -> 30758.77456 | L134: 30758.77456 | M134: 30758.77456 | N134: 30758.77456 | O134: 30758.77456 | P134: 30758.77456 | Q134: 30758.77456 | R134: 30758.77456 | S134: 30758.77456 | T134: 30758.77456 | U134: 30758.77456 | V134: 30758.77456 | W134: 30758.77456 | X134: 30758.77456 | Y134: 30758.77456 | Z134: 0 | AA134: 0 | AB134: 0 | AC134: 0 | AD134: 0 | AE134: 0 | AF134: 0 | AG134: 0 | AH134: 0 | AI134: 0 | AJ134: 0 | AK134: 0 | AL134: 0 | AM134: 0 | AN134: 0 | AO134: 0 | AP134: 0 | AQ134: 0 | AR134: 0 | AS134: 0 | AT134: 0 | AU134: 0 | AV134: 0 | AW134: 0 | AX134: 0
C135: Debt IRR | F135: =IRR(J134:AX134) -> 0.035
A137: DSRA
B138: Debt Service | J138: =J125+J122 -> 0 | K138: =K125+K122 -> 30758.77456 | L138: 30758.77456 | M138: 30758.77456 | N138: 30758.77456 | O138: 30758.77456 | P138: 30758.77456 | Q138: 30758.77456 | R138: 30758.77456 | S138: 30758.77456 | T138: 30758.77456 | U138: 30758.77456 | V138: 30758.77456 | W138: 30758.77456 | X138: 30758.77456 | Y138: 30758.77456 | Z138: 0 | AA138: 0 | AB138: 0 | AC138: 0 | AD138: 0 | AE138: 0 | AF138: 0 | AG138: 0 | AH138: 0 | AI138: 0 | AJ138: 0 | AK138: 0 | AL138: 0 | AM138: 0 | AN138: 0 | AO138: 0 | AP138: 0 | AQ138: 0 | AR138: 0 | AS138: 0 | AT138: 0 | AU138: 0 | AV138: 0 | AW138: 0 | AX138: 0
B139: Prospective Debt Service | J139: =K138 -> 30758.77456 | K139: =L138 -> 30758.77456 | L139: 30758.77456 | M139: 30758.77456 | N139: 30758.77456 | O139: 30758.77456 | P139: 30758.77456 | Q139: 30758.77456 | R139: 30758.77456 | S139: 30758.77456 | T139: 30758.77456 | U139: 30758.77456 | V139: 30758.77456 | W139: 30758.77456 | X139: 30758.77456 | Y139: 0 | Z139: 0 | AA139: 0 | AB139: 0 | AC139: 0 | AD139: 0 | AE139: 0 | AF139: 0 | AG139: 0 | AH139: 0 | AI139: 0 | AJ139: 0 | AK139: 0 | AL139: 0 | AM139: 0 | AN139: 0 | AO139: 0 | AP139: 0 | AQ139: 0 | AR139: 0 | AS139: 0 | AT139: 0 | AU139: 0 | AV139: 0 | AW139: 0 | AX139: 0
B140: Required Debt Service | F140: =F40 -> 0 | J140: =J139*$F$140 -> 0 | K140: =K139*$F$140 -> 0 | L140: 0 | M140: 0 | N140: 0 | O140: 0 | P140: 0 | Q140: 0 | R140: 0 | S140: 0 | T140: 0 | U140: 0 | V140: 0 | W140: 0 | X140: 0 | Y140: 0 | Z140: 0 | AA140: 0 | AB140: 0 | AC140: 0 | AD140: 0 | AE140: 0 | AF140: 0 | AG140: 0 | AH140: 0 | AI140: 0 | AJ140: 0 | AK140: 0 | AL140: 0 | AM140: 0 | AN140: 0 | AO140: 0 | AP140: 0 | AQ140: 0 | AR140: 0 | AS140: 0 | AT140: 0 | AU140: 0 | AV140: 0 | AW140: 0 | AX140: 0
B143: Funding During Construction | J143: =J140-I140 -> 0
B144: Funding After Construcion | K144: =K140-J140 -> 0 | L144: =L140-K140 -> 0 | M144: 0 | N144: 0 | O144: 0 | P144: 0 | Q144: 0 | R144: 0 | S144: 0 | T144: 0 | U144: 0 | V144: 0 | W144: 0 | X144: 0 | Y144: 0 | Z144: 0 | AA144: 0 | AB144: 0 | AC144: 0 | AD144: 0 | AE144: 0 | AF144: 0 | AG144: 0 | AH144: 0 | AI144: 0 | AJ144: 0 | AK144: 0 | AL144: 0 | AM144: 0 | AN144: 0 | AO144: 0 | AP144: 0 | AQ144: 0 | AR144: 0 | AS144: 0 | AT144: 0 | AU144: 0 | AV144: 0 | AW144: 0 | AX144: 0
B146: Opening Balance | J146: =I149 -> 0 | K146: =J149 -> 0 | L146: 0 | M146: 0 | N146: 0 | O146: 0 | P146: 0 | Q146: 0 | R146: 0 | S146: 0 | T146: 0 | U146: 0 | V146: 0 | W146: 0 | X146: 0 | Y146: 0 | Z146: 0 | AA146: 0 | AB146: 0 | AC146: 0 | AD146: 0 | AE146: 0 | AF146: 0 | AG146: 0 | AH146: 0 | AI146: 0 | AJ146: 0 | AK146: 0 | AL146: 0 | AM146: 0 | AN146: 0 | AO146: 0 | AP146: 0 | AQ146: 0 | AR146: 0 | AS146: 0 | AT146: 0 | AU146: 0 | AV146: 0 | AW146: 0 | AX146: 0
B147: Add: Funding During Construction | J147: =J143 -> 0 | K147: =K143 -> 0 | L147: 0 | M147: 0 | N147: 0 | O147: 0 | P147: 0 | Q147: 0 | R147: 0 | S147: 0 | T147: 0 | U147: 0 | V147: 0 | W147: 0 | X147: 0 | Y147: 0 | Z147: 0 | AA147: 0 | AB147: 0 | AC147: 0 | AD147: 0 | AE147: 0 | AF147: 0 | AG147: 0 | AH147: 0 | AI147: 0 | AJ147: 0 | AK147: 0 | AL147: 0 | AM147: 0 | AN147: 0 | AO147: 0 | AP147: 0 | AQ147: 0 | AR147: 0 | AS147: 0 | AT147: 0 | AU147: 0 | AV147: 0 | AW147: 0 | AX147: 0
B148: Add: Funding After Construction | J148: =J144 -> 0 | K148: =K144 -> 0 | L148: 0 | M148: 0 | N148: 0 | O148: 0 | P148: 0 | Q148: 0 | R148: 0 | S148: 0 | T148: 0 | U148: 0 | V148: 0 | W148: 0 | X148: 0 | Y148: 0 | Z148: 0 | AA148: 0 | AB148: 0 | AC148: 0 | AD148: 0 | AE148: 0 | AF148: 0 | AG148: 0 | AH148: 0 | AI148: 0 | AJ148: 0 | AK148: 0 | AL148: 0 | AM148: 0 | AN148: 0 | AO148: 0 | AP148: 0 | AQ148: 0 | AR148: 0 | AS148: 0 | AT148: 0 | AU148: 0 | AV148: 0 | AW148: 0 | AX148: 0
B149: Closing Balance | J149: =J146+J147+J148 -> 0 | K149: =K146+K147+K148 -> 0 | L149: 0 | M149: 0 | N149: 0 | O149: 0 | P149: 0 | Q149: 0 | R149: 0 | S149: 0 | T149: 0 | U149: 0 | V149: 0 | W149: 0 | X149: 0 | Y149: 0 | Z149: 0 | AA149: 0 | AB149: 0 | AC149: 0 | AD149: 0 | AE149: 0 | AF149: 0 | AG149: 0 | AH149: 0 | AI149: 0 | AJ149: 0 | AK149: 0 | AL149: 0 | AM149: 0 | AN149: 0 | AO149: 0 | AP149: 0 | AQ149: 0 | AR149: 0 | AS149: 0 | AT149: 0 | AU149: 0 | AV149: 0 | AW149: 0 | AX149: 0
B151: Interest Income Rate | F151: =F41 -> 0 | J151: =$F$151 -> 0 | K151: =$F$151 -> 0 | L151: 0 | M151: 0 | N151: 0 | O151: 0 | P151: 0 | Q151: 0 | R151: 0 | S151: 0 | T151: 0 | U151: 0 | V151: 0 | W151: 0 | X151: 0 | Y151: 0 | Z151: 0 | AA151: 0 | AB151: 0 | AC151: 0 | AD151: 0 | AE151: 0 | AF151: 0 | AG151: 0 | AH151: 0 | AI151: 0 | AJ151: 0 | AK151: 0 | AL151: 0 | AM151: 0 | AN151: 0 | AO151: 0 | AP151: 0 | AQ151: 0 | AR151: 0 | AS151: 0 | AT151: 0 | AU151: 0 | AV151: 0 | AW151: 0 | AX151: 0
B152: Interest Income | J152: =J151*J146 -> 0 | K152: =K151*K146 -> 0 | L152: 0 | M152: 0 | N152: 0 | O152: 0 | P152: 0 | Q152: 0 | R152: 0 | S152: 0 | T152: 0 | U152: 0 | V152: 0 | W152: 0 | X152: 0 | Y152: 0 | Z152: 0 | AA152: 0 | AB152: 0 | AC152: 0 | AD152: 0 | AE152: 0 | AF152: 0 | AG152: 0 | AH152: 0 | AI152: 0 | AJ152: 0 | AK152: 0 | AL152: 0 | AM152: 0 | AN152: 0 | AO152: 0 | AP152: 0 | AQ152: 0 | AR152: 0 | AS152: 0 | AT152: 0 | AU152: 0 | AV152: 0 | AW152: 0 | AX152: 0
A154: Financial Statements
B155: Profit and Loss
C156: Revenues | J156: =J68 -> 0 | K156: =K68 -> 58349.03025 | L156: =L68 -> 59278.89527 | M156: =M68 -> 60223.57886 | N156: =N68 -> 61183.31717 | O156: =O68 -> 62158.35012 | P156: =P68 -> 63148.92143 | Q156: =Q68 -> 64155.27875 | R156: =R68 -> 65177.67363 | S156: =S68 -> 66216.36165 | T156: =T68 -> 67271.60248 | U156: =U68 -> 68343.65989 | V156: =V68 -> 69432.80188 | W156: =W68 -> 70539.30071 | X156: =X68 -> 71663.43299 | Y156: =Y68 -> 72805.47973 | Z156: =Z68 -> 73965.72642 | AA156: =AA68 -> 75144.4631 | AB156: =AB68 -> 76341.98442 | AC156: =AC68 -> 77558.58975 | AD156: =AD68 -> 78794.58322 | AE156: =AE68 -> 80050.27378 | AF156: =AF68 -> 81325.97536 | AG156: =AG68 -> 82622.00684 | AH156: =AH68 -> 83938.69221 | AI156: =AI68 -> 85276.36061 | AJ156: =AJ68 -> 0 | AK156: =AK68 -> 0 | AL156: =AL68 -> 0 | AM156: =AM68 -> 0 | AN156: =AN68 -> 0 | AO156: =AO68 -> 0 | AP156: =AP68 -> 0 | AQ156: =AQ68 -> 0 | AR156: =AR68 -> 0 | AS156: =AS68 -> 0 | AT156: =AT68 -> 0 | AU156: =AU68 -> 0 | AV156: =AV68 -> 0 | AW156: =AW68 -> 0 | AX156: =AX68 -> 0
C157: Less: Operating Costs | J157: =J63 -> 0 | K157: =K63 -> 4446.742012 | L157: =L63 -> 4535.676852 | M157: =M63 -> 4626.390389 | N157: =N63 -> 4718.918197 | O157: =O63 -> 4813.296561 | P157: =P63 -> 4909.562492 | Q157: =Q63 -> 5007.753742 | R157: =R63 -> 5107.908817 | S157: =S63 -> 5210.066993 | T157: =T63 -> 5314.268333 | U157: =U63 -> 5420.5537 | V157: =V63 -> 5528.964774 | W157: =W63 -> 5639.544069 | X157: =X63 -> 5752.33495 | Y157: =Y63 -> 5867.381649 | Z157: =Z63 -> 5984.729282 | AA157: =AA63 -> 6104.423868 | AB157: =AB63 -> 6226.512345 | AC157: =AC63 -> 6351.042592 | AD157: =AD63 -> 6478.063444 | AE157: =AE63 -> 6607.624713 | AF157: =AF63 -> 6739.777207 | AG157: =AG63 -> 6874.572751 | AH157: =AH63 -> 7012.064207 | AI157: =AI63 -> 7152.305491 | AJ157: =AJ63 -> 0 | AK157: =AK63 -> 0 | AL157: =AL63 -> 0 | AM157: =AM63 -> 0 | AN157: =AN63 -> 0 | AO157: =AO63 -> 0 | AP157: =AP63 -> 0 | AQ157: =AQ63 -> 0 | AR157: =AR63 -> 0 | AS157: =AS63 -> 0 | AT157: =AT63 -> 0 | AU157: =AU63 -> 0 | AV157: =AV63 -> 0 | AW157: =AW63 -> 0 | AX157: =AX63 -> 0
D158: EBITDA | J158: =J156-J157 -> 0 | K158: =K156-K157 -> 53902.28824 | L158: 54743.21842 | M158: 55597.18848 | N158: 56464.39898 | O158: 57345.05356 | P158: 58239.35894 | Q158: 59147.525 | R158: 60069.76481 | S158: 61006.29466 | T158: 61957.33414 | U158: 62923.10619 | V158: 63903.8371 | W158: 64899.75664 | X158: 65911.09804 | Y158: 66938.09808 | Z158: 67980.99714 | AA158: 69040.03923 | AB158: 70115.47208 | AC158: 71207.54716 | AD158: 72316.51977 | AE158: 73442.64907 | AF158: 74586.19815 | AG158: 75747.43409 | AH158: 76926.628 | AI158: 78124.05512 | AJ158: 0 | AK158: 0 | AL158: 0 | AM158: 0 | AN158: 0 | AO158: 0 | AP158: 0 | AQ158: 0 | AR158: 0 | AS158: 0 | AT158: 0 | AU158: 0 | AV158: 0 | AW158: 0 | AX158: 0
C159: Less: Depreciation Expense | J159: =J80 -> 0 | K159: =K80 -> 23617.42968 | L159: =L80 -> 23617.42968 | M159: =M80 -> 23617.42968 | N159: =N80 -> 23617.42968 | O159: =O80 -> 23617.42968 | P159: =P80 -> 23617.42968 | Q159: =Q80 -> 23617.42968 | R159: =R80 -> 23617.42968 | S159: =S80 -> 23617.42968 | T159: =T80 -> 23617.42968 | U159: =U80 -> 23617.42968 | V159: =V80 -> 23617.42968 | W159: =W80 -> 23617.42968 | X159: =X80 -> 23617.42968 | Y159: =Y80 -> 23617.42968 | Z159: =Z80 -> 23617.42968 | AA159: =AA80 -> 23617.42968 | AB159: =AB80 -> 23617.42968 | AC159: =AC80 -> 23617.42968 | AD159: =AD80 -> 23617.42968 | AE159: =AE80 -> 0 | AF159: =AF80 -> 0 | AG159: =AG80 -> 0 | AH159: =AH80 -> 0 | AI159: =AI80 -> 0 | AJ159: =AJ80 -> 0 | AK159: =AK80 -> 0 | AL159: =AL80 -> 0 | AM159: =AM80 -> 0 | AN159: =AN80 -> 0 | AO159: =AO80 -> 0 | AP159: =AP80 -> 0 | AQ159: =AQ80 -> 0 | AR159: =AR80 -> 0 | AS159: =AS80 -> 0 | AT159: =AT80 -> 0 | AU159: =AU80 -> 0 | AV159: =AV80 -> 0 | AW159: =AW80 -> 0 | AX159: =AX80 -> 0
C160: Less: Amortisation of Fees | K160: =K132 -> 0 | L160: =L132 -> 0 | M160: 0 | N160: 0 | O160: 0 | P160: 0 | Q160: 0 | R160: 0 | S160: 0 | T160: 0 | U160: 0 | V160: 0 | W160: 0 | X160: 0 | Y160: 0 | Z160: 0 | AA160: 0 | AB160: 0 | AC160: 0 | AD160: 0 | AE160: 0 | AF160: 0 | AG160: 0 | AH160: 0 | AI160: 0 | AJ160: 0 | AK160: 0 | AL160: 0 | AM160: 0 | AN160: 0 | AO160: 0 | AP160: 0 | AQ160: 0 | AR160: 0 | AS160: 0 | AT160: 0 | AU160: 0 | AV160: 0 | AW160: 0 | AX160: 0
D161: EBIT | J161: =J158-J159-J160 -> 0 | K161: =K158-K159-K160 -> 30284.85856 | L161: 31125.78874 | M161: 31979.75879 | N161: 32846.96929 | O161: 33727.62387 | P161: 34621.92926 | Q161: 35530.09532 | R161: 36452.33513 | S161: 37388.86498 | T161: 38339.90446 | U161: 39305.6765 | V161: 40286.40742 | W161: 41282.32696 | X161: 42293.66836 | Y161: 43320.6684 | Z161: 44363.56746 | AA161: 45422.60955 | AB161: 46498.04239 | AC161: 47590.11748 | AD161: 48699.09009 | AE161: 73442.64907 | AF161: 74586.19815 | AG161: 75747.43409 | AH161: 76926.628 | AI161: 78124.05512 | AJ161: 0 | AK161: 0 | AL161: 0 | AM161: 0 | AN161: 0 | AO161: 0 | AP161: 0 | AQ161: 0 | AR161: 0 | AS161: 0 | AT161: 0 | AU161: 0 | AV161: 0 | AW161: 0 | AX161: 0
C162: Less: Interest Expense | J162: =J125 -> 0 | K162: =K125 -> 12399.15058 | L162: =L125 -> 11756.56374 | M162: =M125 -> 11091.48637 | N162: =N125 -> 10403.13128 | O162: =O125 -> 9690.683765 | P162: =P125 -> 8953.300587 | Q162: =Q125 -> 8190.108998 | R162: =R125 -> 7400.205703 | S162: =S125 -> 6582.655794 | T162: =T125 -> 5736.491637 | U162: =U125 -> 4860.711735 | V162: =V125 -> 3954.279536 | W162: =W125 -> 3016.12221 | X162: =X125 -> 2045.129378 | Y162: =Y125 -> 1040.151797 | Z162: =Z125 -> 0 | AA162: =AA125 -> 0 | AB162: =AB125 -> 0 | AC162: =AC125 -> 0 | AD162: =AD125 -> 0 | AE162: =AE125 -> 0 | AF162: =AF125 -> 0 | AG162: =AG125 -> 0 | AH162: =AH125 -> 0 | AI162: =AI125 -> 0 | AJ162: =AJ125 -> 0 | AK162: =AK125 -> 0 | AL162: =AL125 -> 0 | AM162: =AM125 -> 0 | AN162: =AN125 -> 0 | AO162: =AO125 -> 0 | AP162: =AP125 -> 0 | AQ162: =AQ125 -> 0 | AR162: =AR125 -> 0 | AS162: =AS125 -> 0 | AT162: =AT125 -> 0 | AU162: =AU125 -> 0 | AV162: =AV125 -> 0 | AW162: =AW125 -> 0 | AX162: =AX125 -> 0
D163: Earnings Before Tax | J163: =J161-J162 -> 0 | K163: =K161-K162 -> 17885.70797 | L163: 19369.22499 | M163: 20888.27243 | N163: 22443.83801 | O163: 24036.94011 | P163: 25668.62867 | Q163: 27339.98632 | R163: 29052.12942 | S163: 30806.20918 | T163: 32603.41282 | U163: 34444.96477 | V163: 36332.12788 | W163: 38266.20475 | X163: 40248.53898 | Y163: 42280.5166 | Z163: 44363.56746 | AA163: 45422.60955 | AB163: 46498.04239 | AC163: 47590.11748 | AD163: 48699.09009 | AE163: 73442.64907 | AF163: 74586.19815 | AG163: 75747.43409 | AH163: 76926.628 | AI163: 78124.05512 | AJ163: 0 | AK163: 0 | AL163: 0 | AM163: 0 | AN163: 0 | AO163: 0 | AP163: 0 | AQ163: 0 | AR163: 0 | AS163: 0 | AT163: 0 | AU163: 0 | AV163: 0 | AW163: 0 | AX163: 0
C164: Less: Taxes | F164: =F30 -> 0.15 | J164: =MAX($F$164*J163,0) -> 0 | K164: =MAX($F$164*K163,0) -> 2682.856196 | L164: 2905.383749 | M164: 3133.240864 | N164: 3366.575702 | O164: 3605.541016 | P164: 3850.294301 | Q164: 4100.997949 | R164: 4357.819414 | S164: 4620.931377 | T164: 4890.511923 | U164: 5166.744715 | V164: 5449.819183 | W164: 5739.930712 | X164: 6037.280847 | Y164: 6342.077491 | Z164: 6654.535119 | AA164: 6813.391432 | AB164: 6974.706359 | AC164: 7138.517622 | AD164: 7304.863513 | AE164: 11016.39736 | AF164: 11187.92972 | AG164: 11362.11511 | AH164: 11538.9942 | AI164: 11718.60827 | AJ164: 0 | AK164: 0 | AL164: 0 | AM164: 0 | AN164: 0 | AO164: 0 | AP164: 0 | AQ164: 0 | AR164: 0 | AS164: 0 | AT164: 0 | AU164: 0 | AV164: 0 | AW164: 0 | AX164: 0
D165: Earnings | J165: =J163-J164 -> 0 | K165: =K163-K164 -> 15202.85178 | L165: 16463.84125 | M165: 17755.03156 | N165: 19077.26231 | O165: 20431.39909 | P165: 21818.33437 | Q165: 23238.98837 | R165: 24694.31001 | S165: 26185.27781 | T165: 27712.9009 | U165: 29278.22005 | V165: 30882.3087 | W165: 32526.27404 | X165: 34211.25813 | Y165: 35938.43911 | Z165: 37709.03234 | AA165: 38609.21812 | AB165: 39523.33604 | AC165: 40451.59986 | AD165: 41394.22657 | AE165: 62426.25171 | AF165: 63398.26843 | AG165: 64385.31897 | AH165: 65387.6338 | AI165: 66405.44685 | AJ165: 0 | AK165: 0 | AL165: 0 | AM165: 0 | AN165: 0 | AO165: 0 | AP165: 0 | AQ165: 0 | AR165: 0 | AS165: 0 | AT165: 0 | AU165: 0 | AV165: 0 | AW165: 0 | AX165: 0
B167: Cash Flow Waterfall During Operations
C168: EBITDA | J168: =J158 -> 0 | K168: =K158 -> 53902.28824 | L168: 54743.21842 | M168: 55597.18848 | N168: 56464.39898 | O168: 57345.05356 | P168: 58239.35894 | Q168: 59147.525 | R168: 60069.76481 | S168: 61006.29466 | T168: 61957.33414 | U168: 62923.10619 | V168: 63903.8371 | W168: 64899.75664 | X168: 65911.09804 | Y168: 66938.09808 | Z168: 67980.99714 | AA168: 69040.03923 | AB168: 70115.47208 | AC168: 71207.54716 | AD168: 72316.51977 | AE168: 73442.64907 | AF168: 74586.19815 | AG168: 75747.43409 | AH168: 76926.628 | AI168: 78124.05512 | AJ168: 0 | AK168: 0 | AL168: 0 | AM168: 0 | AN168: 0 | AO168: 0 | AP168: 0 | AQ168: 0 | AR168: 0 | AS168: 0 | AT168: 0 | AU168: 0 | AV168: 0 | AW168: 0 | AX168: 0
C169: Less: Taxes | J169: =J164 -> 0 | K169: =K164 -> 2682.856196 | L169: 2905.383749 | M169: 3133.240864 | N169: 3366.575702 | O169: 3605.541016 | P169: 3850.294301 | Q169: 4100.997949 | R169: 4357.819414 | S169: 4620.931377 | T169: 4890.511923 | U169: 5166.744715 | V169: 5449.819183 | W169: 5739.930712 | X169: 6037.280847 | Y169: 6342.077491 | Z169: 6654.535119 | AA169: 6813.391432 | AB169: 6974.706359 | AC169: 7138.517622 | AD169: 7304.863513 | AE169: 11016.39736 | AF169: 11187.92972 | AG169: 11362.11511 | AH169: 11538.9942 | AI169: 11718.60827 | AJ169: 0 | AK169: 0 | AL169: 0 | AM169: 0 | AN169: 0 | AO169: 0 | AP169: 0 | AQ169: 0 | AR169: 0 | AS169: 0 | AT169: 0 | AU169: 0 | AV169: 0 | AW169: 0 | AX169: 0
C170: Less: DSRA Changes | J170: =J148 -> 0 | K170: =K148 -> 0 | L170: 0 | M170: 0 | N170: 0 | O170: 0 | P170: 0 | Q170: 0 | R170: 0 | S170: 0 | T170: 0 | U170: 0 | V170: 0 | W170: 0 | X170: 0 | Y170: 0 | Z170: 0 | AA170: 0 | AB170: 0 | AC170: 0 | AD170: 0 | AE170: 0 | AF170: 0 | AG170: 0 | AH170: 0 | AI170: 0 | AJ170: 0 | AK170: 0 | AL170: 0 | AM170: 0 | AN170: 0 | AO170: 0 | AP170: 0 | AQ170: 0 | AR170: 0 | AS170: 0 | AT170: 0 | AU170: 0 | AV170: 0 | AW170: 0 | AX170: 0
D171: CFADS | J171: =J168-J169-J170 -> 0 | K171: =K168-K169-K170 -> 51219.43204 | L171: 51837.83467 | M171: 52463.94761 | N171: 53097.82327 | O171: 53739.51254 | P171: 54389.06464 | Q171: 55046.52706 | R171: 55711.9454 | S171: 56385.36328 | T171: 57066.82222 | U171: 57756.36147 | V171: 58454.01792 | W171: 59159.82593 | X171: 59873.8172 | Y171: 60596.02059 | Z171: 61326.46202 | AA171: 62226.6478 | AB171: 63140.76572 | AC171: 64069.02954 | AD171: 65011.65626 | AE171: 62426.25171 | AF171: 63398.26843 | AG171: 64385.31897 | AH171: 65387.6338 | AI171: 66405.44685 | AJ171: 0 | AK171: 0 | AL171: 0 | AM171: 0 | AN171: 0 | AO171: 0 | AP171: 0 | AQ171: 0 | AR171: 0 | AS171: 0 | AT171: 0 | AU171: 0 | AV171: 0 | AW171: 0 | AX171: 0
C172: Less: Interest | J172: =J125 -> 0 | K172: =K125 -> 12399.15058 | L172: =L125 -> 11756.56374 | M172: =M125 -> 11091.48637 | N172: =N125 -> 10403.13128 | O172: =O125 -> 9690.683765 | P172: =P125 -> 8953.300587 | Q172: =Q125 -> 8190.108998 | R172: =R125 -> 7400.205703 | S172: =S125 -> 6582.655794 | T172: =T125 -> 5736.491637 | U172: =U125 -> 4860.711735 | V172: =V125 -> 3954.279536 | W172: =W125 -> 3016.12221 | X172: =X125 -> 2045.129378 | Y172: =Y125 -> 1040.151797 | Z172: =Z125 -> 0 | AA172: =AA125 -> 0 | AB172: =AB125 -> 0 | AC172: =AC125 -> 0 | AD172: =AD125 -> 0 | AE172: =AE125 -> 0 | AF172: =AF125 -> 0 | AG172: =AG125 -> 0 | AH172: =AH125 -> 0 | AI172: =AI125 -> 0 | AJ172: =AJ125 -> 0 | AK172: =AK125 -> 0 | AL172: =AL125 -> 0 | AM172: =AM125 -> 0 | AN172: =AN125 -> 0 | AO172: =AO125 -> 0 | AP172: =AP125 -> 0 | AQ172: =AQ125 -> 0 | AR172: =AR125 -> 0 | AS172: =AS125 -> 0 | AT172: =AT125 -> 0 | AU172: =AU125 -> 0 | AV172: =AV125 -> 0 | AW172: =AW125 -> 0 | AX172: =AX125 -> 0
C173: Less: Repayment | J173: =J122 -> 0 | K173: =K122 -> 18359.62397 | L173: =L122 -> 19002.21081 | M173: =M122 -> 19667.28819 | N173: =N122 -> 20355.64328 | O173: =O122 -> 21068.09079 | P173: =P122 -> 21805.47397 | Q173: =Q122 -> 22568.66556 | R173: =R122 -> 23358.56885 | S173: =S122 -> 24176.11876 | T173: =T122 -> 25022.28292 | U173: =U122 -> 25898.06282 | V173: =V122 -> 26804.49502 | W173: =W122 -> 27742.65235 | X173: =X122 -> 28713.64518 | Y173: =Y122 -> 29718.62276 | Z173: =Z122 -> 0 | AA173: =AA122 -> 0 | AB173: =AB122 -> 0 | AC173: =AC122 -> 0 | AD173: =AD122 -> 0 | AE173: =AE122 -> 0 | AF173: =AF122 -> 0 | AG173: =AG122 -> 0 | AH173: =AH122 -> 0 | AI173: =AI122 -> 0 | AJ173: =AJ122 -> 0 | AK173: =AK122 -> 0 | AL173: =AL122 -> 0 | AM173: =AM122 -> 0 | AN173: =AN122 -> 0 | AO173: =AO122 -> 0 | AP173: =AP122 -> 0 | AQ173: =AQ122 -> 0 | AR173: =AR122 -> 0 | AS173: =AS122 -> 0 | AT173: =AT122 -> 0 | AU173: =AU122 -> 0 | AV173: =AV122 -> 0 | AW173: =AW122 -> 0 | AX173: =AX122 -> 0
D174: Cash Flow before Trap and Sweep | J174: =J171-J172-J173 -> 0 | K174: =K171-K172-K173 -> 20460.65749 | L174: 21079.06012 | M174: 21705.17305 | N174: 22339.04872 | O174: 22980.73798 | P174: 23630.29008 | Q174: 24287.7525 | R174: 24953.17084 | S174: 25626.58872 | T174: 26308.04766 | U174: 26997.58691 | V174: 27695.24336 | W174: 28401.05137 | X174: 29115.04264 | Y174: 29837.24604 | Z174: 61326.46202 | AA174: 62226.6478 | AB174: 63140.76572 | AC174: 64069.02954 | AD174: 65011.65626 | AE174: 62426.25171 | AF174: 63398.26843 | AG174: 64385.31897 | AH174: 65387.6338 | AI174: 66405.44685 | AJ174: 0 | AK174: 0 | AL174: 0 | AM174: 0 | AN174: 0 | AO174: 0 | AP174: 0 | AQ174: 0 | AR174: 0 | AS174: 0 | AT174: 0 | AU174: 0 | AV174: 0 | AW174: 0 | AX174: 0
D175: Dividends | J175: =J174 -> 0 | K175: =K174 -> 20460.65749 | L175: 21079.06012 | M175: 21705.17305 | N175: 22339.04872 | O175: 22980.73798 | P175: 23630.29008 | Q175: 24287.7525 | R175: 24953.17084 | S175: 25626.58872 | T175: 26308.04766 | U175: 26997.58691 | V175: 27695.24336 | W175: 28401.05137 | X175: 29115.04264 | Y175: 29837.24604 | Z175: 61326.46202 | AA175: 62226.6478 | AB175: 63140.76572 | AC175: 64069.02954 | AD175: 65011.65626 | AE175: 62426.25171 | AF175: 63398.26843 | AG175: 64385.31897 | AH175: 65387.6338 | AI175: 66405.44685 | AJ175: 0 | AK175: 0 | AL175: 0 | AM175: 0 | AN175: 0 | AO175: 0 | AP175: 0 | AQ175: 0 | AR175: 0 | AS175: 0 | AT175: 0 | AU175: 0 | AV175: 0 | AW175: 0 | AX175: 0
B177: Balance Sheet
C178: Equity Balance
D179: Opening Balance | J179: =I183 -> 0 | K179: =J183 -> 118087.1484 | L179: 112829.3427 | M179: 108214.1238 | N179: 104263.9823 | O179: 101002.1959 | P179: 98452.85705 | Q179: 96640.90134 | R179: 95592.13721 | S179: 95333.27638 | T179: 95891.96546 | U179: 97296.8187 | V179: 99577.45184 | W179: 102764.5172 | X179: 106889.7398 | Y179: 111985.9553 | Z179: 118087.1484 | AA179: 94469.71873 | AB179: 70852.28905 | AC179: 47234.85937 | AD179: 23617.42968 | AE179: -8.003553376e-11 | AF179: -8.003553376e-11 | AG179: -8.003553376e-11 | AH179: -8.003553376e-11 | AI179: -8.003553376e-11 | AJ179: 0 | AK179: 0 | AL179: 0 | AM179: 0 | AN179: 0 | AO179: 0 | AP179: 0 | AQ179: 0 | AR179: 0 | AS179: 0 | AT179: 0 | AU179: 0 | AV179: 0 | AW179: 0 | AX179: 0
D180: Add: Equity Contributions | J180: =J106 -> 118087.1484 | K180: =K106 -> 0 | L180: =L106 -> 0 | M180: =M106 -> 0 | N180: =N106 -> 0 | O180: =O106 -> 0 | P180: =P106 -> 0 | Q180: =Q106 -> 0 | R180: =R106 -> 0 | S180: =S106 -> 0 | T180: =T106 -> 0 | U180: =U106 -> 0 | V180: =V106 -> 0 | W180: =W106 -> 0 | X180: =X106 -> 0 | Y180: =Y106 -> 0 | Z180: =Z106 -> 0 | AA180: =AA106 -> 0 | AB180: =AB106 -> 0 | AC180: =AC106 -> 0 | AD180: =AD106 -> 0 | AE180: =AE106 -> 0 | AF180: =AF106 -> 0 | AG180: =AG106 -> 0 | AH180: =AH106 -> 0 | AI180: =AI106 -> 0 | AJ180: =AJ106 -> 0 | AK180: =AK106 -> 0 | AL180: =AL106 -> 0 | AM180: =AM106 -> 0 | AN180: =AN106 -> 0 | AO180: =AO106 -> 0 | AP180: =AP106 -> 0 | AQ180: =AQ106 -> 0 | AR180: =AR106 -> 0 | AS180: =AS106 -> 0 | AT180: =AT106 -> 0 | AU180: =AU106 -> 0 | AV180: =AV106 -> 0 | AW180: =AW106 -> 0 | AX180: =AX106 -> 0
D181: Add: Income | J181: =J165 -> 0 | K181: =K165 -> 15202.85178 | L181: 16463.84125 | M181: 17755.03156 | N181: 19077.26231 | O181: 20431.39909 | P181: 21818.33437 | Q181: 23238.98837 | R181: 24694.31001 | S181: 26185.27781 | T181: 27712.9009 | U181: 29278.22005 | V181: 30882.3087 | W181: 32526.27404 | X181: 34211.25813 | Y181: 35938.43911 | Z181: 37709.03234 | AA181: 38609.21812 | AB181: 39523.33604 | AC181: 40451.59986 | AD181: 41394.22657 | AE181: 62426.25171 | AF181: 63398.26843 | AG181: 64385.31897 | AH181: 65387.6338 | AI181: 66405.44685 | AJ181: 0 | AK181: 0 | AL181: 0 | AM181: 0 | AN181: 0 | AO181: 0 | AP181: 0 | AQ181: 0 | AR181: 0 | AS181: 0 | AT181: 0 | AU181: 0 | AV181: 0 | AW181: 0 | AX181: 0
D182: Less: Dividends | J182: =J175 -> 0 | K182: =K175 -> 20460.65749 | L182: 21079.06012 | M182: 21705.17305 | N182: 22339.04872 | O182: 22980.73798 | P182: 23630.29008 | Q182: 24287.7525 | R182: 24953.17084 | S182: 25626.58872 | T182: 26308.04766 | U182: 26997.58691 | V182: 27695.24336 | W182: 28401.05137 | X182: 29115.04264 | Y182: 29837.24604 | Z182: 61326.46202 | AA182: 62226.6478 | AB182: 63140.76572 | AC182: 64069.02954 | AD182: 65011.65626 | AE182: 62426.25171 | AF182: 63398.26843 | AG182: 64385.31897 | AH182: 65387.6338 | AI182: 66405.44685 | AJ182: 0 | AK182: 0 | AL182: 0 | AM182: 0 | AN182: 0 | AO182: 0 | AP182: 0 | AQ182: 0 | AR182: 0 | AS182: 0 | AT182: 0 | AU182: 0 | AV182: 0 | AW182: 0 | AX182: 0
D183: Closing Balance | J183: =J179+J180+J181-J182 -> 118087.1484 | K183: =K179+K180+K181-K182 -> 112829.3427 | L183: 108214.1238 | M183: 104263.9823 | N183: 101002.1959 | O183: 98452.85705 | P183: 96640.90134 | Q183: 95592.13721 | R183: 95333.27638 | S183: 95891.96546 | T183: 97296.8187 | U183: 99577.45184 | V183: 102764.5172 | W183: 106889.7398 | X183: 111985.9553 | Y183: 118087.1484 | Z183: 94469.71873 | AA183: 70852.28905 | AB183: 47234.85937 | AC183: 23617.42968 | AD183: -8.003553376e-11 | AE183: -8.003553376e-11 | AF183: -8.003553376e-11 | AG183: -8.003553376e-11 | AH183: -8.003553376e-11 | AI183: 0 | AJ183: 0 | AK183: 0 | AL183: 0 | AM183: 0 | AN183: 0 | AO183: 0 | AP183: 0 | AQ183: 0 | AR183: 0 | AS183: 0 | AT183: 0 | AU183: 0 | AV183: 0 | AW183: 0 | AX183: 0
C185: Assets
D186: Net Plant | J186: =J82 -> 472348.5937 | K186: =K82 -> 448731.164 | L186: =L82 -> 425113.7343 | M186: =M82 -> 401496.3046 | N186: =N82 -> 377878.8749 | O186: =O82 -> 354261.4453 | P186: =P82 -> 330644.0156 | Q186: =Q82 -> 307026.5859 | R186: =R82 -> 283409.1562 | S186: =S82 -> 259791.7265 | T186: =T82 -> 236174.2968 | U186: =U82 -> 212556.8672 | V186: =V82 -> 188939.4375 | W186: =W82 -> 165322.0078 | X186: =X82 -> 141704.5781 | Y186: =Y82 -> 118087.1484 | Z186: =Z82 -> 94469.71873 | AA186: =AA82 -> 70852.28905 | AB186: =AB82 -> 47234.85937 | AC186: =AC82 -> 23617.42968 | AD186: =AD82 -> 0 | AE186: =AE82 -> 0 | AF186: =AF82 -> 0 | AG186: =AG82 -> 0 | AH186: =AH82 -> 0 | AI186: =AI82 -> 0 | AJ186: =AJ82 -> 0 | AK186: =AK82 -> 0 | AL186: =AL82 -> 0 | AM186: =AM82 -> 0 | AN186: =AN82 -> 0 | AO186: =AO82 -> 0 | AP186: =AP82 -> 0 | AQ186: =AQ82 -> 0 | AR186: =AR82 -> 0 | AS186: =AS82 -> 0 | AT186: =AT82 -> 0 | AU186: =AU82 -> 0 | AV186: =AV82 -> 0 | AW186: =AW82 -> 0 | AX186: =AX82 -> 0
D187: Net Fees | J187: =J133 -> 0 | K187: =K133 -> 0 | L187: 0 | M187: 0 | N187: 0 | O187: 0 | P187: 0 | Q187: 0 | R187: 0 | S187: 0 | T187: 0 | U187: 0 | V187: 0 | W187: 0 | X187: 0 | Y187: 0 | Z187: 0 | AA187: 0 | AB187: 0 | AC187: 0 | AD187: 0 | AE187: 0 | AF187: 0 | AG187: 0 | AH187: 0 | AI187: 0 | AJ187: 0 | AK187: 0 | AL187: 0 | AM187: 0 | AN187: 0 | AO187: 0 | AP187: 0 | AQ187: 0 | AR187: 0 | AS187: 0 | AT187: 0 | AU187: 0 | AV187: 0 | AW187: 0 | AX187: 0
D188: DSRA | J188: =J149 -> 0 | K188: =K149 -> 0 | L188: 0 | M188: 0 | N188: 0 | O188: 0 | P188: 0 | Q188: 0 | R188: 0 | S188: 0 | T188: 0 | U188: 0 | V188: 0 | W188: 0 | X188: 0 | Y188: 0 | Z188: 0 | AA188: 0 | AB188: 0 | AC188: 0 | AD188: 0 | AE188: 0 | AF188: 0 | AG188: 0 | AH188: 0 | AI188: 0 | AJ188: 0 | AK188: 0 | AL188: 0 | AM188: 0 | AN188: 0 | AO188: 0 | AP188: 0 | AQ188: 0 | AR188: 0 | AS188: 0 | AT188: 0 | AU188: 0 | AV188: 0 | AW188: 0 | AX188: 0
D189: Total | J189: =J186+J187+J188 -> 472348.5937 | K189: =K186+K187+K188 -> 448731.164 | L189: 425113.7343 | M189: 401496.3046 | N189: 377878.8749 | O189: 354261.4453 | P189: 330644.0156 | Q189: 307026.5859 | R189: 283409.1562 | S189: 259791.7265 | T189: 236174.2968 | U189: 212556.8672 | V189: 188939.4375 | W189: 165322.0078 | X189: 141704.5781 | Y189: 118087.1484 | Z189: 94469.71873 | AA189: 70852.28905 | AB189: 47234.85937 | AC189: 23617.42968 | AD189: 0 | AE189: 0 | AF189: 0 | AG189: 0 | AH189: 0 | AI189: 0 | AJ189: 0 | AK189: 0 | AL189: 0 | AM189: 0 | AN189: 0 | AO189: 0 | AP189: 0 | AQ189: 0 | AR189: 0 | AS189: 0 | AT189: 0 | AU189: 0 | AV189: 0 | AW189: 0 | AX189: 0
D191: Debt | J191: =J123 -> 354261.4453 | K191: =K123 -> 335901.8213 | L191: =L123 -> 316899.6105 | M191: =M123 -> 297232.3223 | N191: =N123 -> 276876.679 | O191: =O123 -> 255808.5882 | P191: =P123 -> 234003.1142 | Q191: =Q123 -> 211434.4487 | R191: =R123 -> 188075.8798 | S191: =S123 -> 163899.7611 | T191: =T123 -> 138877.4781 | U191: =U123 -> 112979.4153 | V191: =V123 -> 86174.92029 | W191: =W123 -> 58432.26794 | X191: =X123 -> 29718.62276 | Y191: =Y123 -> 0 | Z191: =Z123 -> 0 | AA191: =AA123 -> 0 | AB191: =AB123 -> 0 | AC191: =AC123 -> 0 | AD191: =AD123 -> 0 | AE191: =AE123 -> 0 | AF191: =AF123 -> 0 | AG191: =AG123 -> 0 | AH191: =AH123 -> 0 | AI191: =AI123 -> 0 | AJ191: =AJ123 -> 0 | AK191: =AK123 -> 0 | AL191: =AL123 -> 0 | AM191: =AM123 -> 0 | AN191: =AN123 -> 0 | AO191: =AO123 -> 0 | AP191: =AP123 -> 0 | AQ191: =AQ123 -> 0 | AR191: =AR123 -> 0 | AS191: =AS123 -> 0 | AT191: =AT123 -> 0 | AU191: =AU123 -> 0 | AV191: =AV123 -> 0 | AW191: =AW123 -> 0 | AX191: =AX123 -> 0
D192: Equity | J192: =J183 -> 118087.1484 | K192: =K183 -> 112829.3427 | L192: 108214.1238 | M192: 104263.9823 | N192: 101002.1959 | O192: 98452.85705 | P192: 96640.90134 | Q192: 95592.13721 | R192: 95333.27638 | S192: 95891.96546 | T192: 97296.8187 | U192: 99577.45184 | V192: 102764.5172 | W192: 106889.7398 | X192: 111985.9553 | Y192: 118087.1484 | Z192: 94469.71873 | AA192: 70852.28905 | AB192: 47234.85937 | AC192: 23617.42968 | AD192: -8.003553376e-11 | AE192: -8.003553376e-11 | AF192: -8.003553376e-11 | AG192: -8.003553376e-11 | AH192: -8.003553376e-11 | AI192: 0 | AJ192: 0 | AK192: 0 | AL192: 0 | AM192: 0 | AN192: 0 | AO192: 0 | AP192: 0 | AQ192: 0 | AR192: 0 | AS192: 0 | AT192: 0 | AU192: 0 | AV192: 0 | AW192: 0 | AX192: 0
D193: Total | J193: =SUM(J191:J192) -> 472348.5937 | K193: =SUM(K191:K192) -> 448731.164 | L193: 425113.7343 | M193: 401496.3046 | N193: 377878.8749 | O193: 354261.4453 | P193: 330644.0156 | Q193: 307026.5859 | R193: 283409.1562 | S193: 259791.7265 | T193: 236174.2968 | U193: 212556.8672 | V193: 188939.4375 | W193: 165322.0078 | X193: 141704.5781 | Y193: 118087.1484 | Z193: 94469.71873 | AA193: 70852.28905 | AB193: 47234.85937 | AC193: 23617.42968 | AD193: -8.003553376e-11 | AE193: -8.003553376e-11 | AF193: -8.003553376e-11 | AG193: -8.003553376e-11 | AH193: -8.003553376e-11 | AI193: 0 | AJ193: 0 | AK193: 0 | AL193: 0 | AM193: 0 | AN193: 0 | AO193: 0 | AP193: 0 | AQ193: 0 | AR193: 0 | AS193: 0 | AT193: 0 | AU193: 0 | AV193: 0 | AW193: 0 | AX193: 0
B194: Difference | J194: =ROUND(J193-J189,2) -> 0 | K194: =ROUND(K193-K189,2) -> 0 | L194: 0 | M194: 0 | N194: 0 | O194: 0 | P194: 0 | Q194: 0 | R194: 0 | S194: 0 | T194: 0 | U194: 0 | V194: 0 | W194: 0 | X194: 0 | Y194: 0 | Z194: 0 | AA194: 0 | AB194: 0 | AC194: 0 | AD194: 0 | AE194: 0 | AF194: 0 | AG194: 0 | AH194: 0 | AI194: 0 | AJ194: 0 | AK194: 0 | AL194: 0 | AM194: 0 | AN194: 0 | AO194: 0 | AP194: 0 | AQ194: 0 | AR194: 0 | AS194: 0 | AT194: 0 | AU194: 0 | AV194: 0 | AW194: 0 | AX194: 0
B195: Test | F195: =AND(J195:AX195) -> TRUE | J195: =J194=0 -> TRUE | K195: =K194=0 -> TRUE | L195: TRUE | M195: TRUE | N195: TRUE | O195: TRUE | P195: TRUE | Q195: TRUE | R195: TRUE | S195: TRUE | T195: TRUE | U195: TRUE | V195: TRUE | W195: TRUE | X195: TRUE | Y195: TRUE | Z195: TRUE | AA195: TRUE | AB195: TRUE | AC195: TRUE | AD195: TRUE | AE195: TRUE | AF195: TRUE | AG195: TRUE | AH195: TRUE | AI195: TRUE | AJ195: TRUE | AK195: TRUE | AL195: TRUE | AM195: TRUE | AN195: TRUE | AO195: TRUE | AP195: TRUE | AQ195: TRUE | AR195: TRUE | AS195: TRUE | AT195: TRUE | AU195: TRUE | AV195: TRUE | AW195: TRUE | AX195: TRUE
A197: Financial Ratios
B198: Equity Cash Flow | J198: =J175-J106 -> -118087.1484 | K198: =K175-K106 -> 20460.65749 | L198: =L175-L106 -> 21079.06012 | M198: =M175-M106 -> 21705.17305 | N198: =N175-N106 -> 22339.04872 | O198: =O175-O106 -> 22980.73798 | P198: =P175-P106 -> 23630.29008 | Q198: =Q175-Q106 -> 24287.7525 | R198: =R175-R106 -> 24953.17084 | S198: =S175-S106 -> 25626.58872 | T198: =T175-T106 -> 26308.04766 | U198: =U175-U106 -> 26997.58691 | V198: =V175-V106 -> 27695.24336 | W198: =W175-W106 -> 28401.05137 | X198: =X175-X106 -> 29115.04264 | Y198: =Y175-Y106 -> 29837.24604 | Z198: =Z175-Z106 -> 61326.46202 | AA198: =AA175-AA106 -> 62226.6478 | AB198: =AB175-AB106 -> 63140.76572 | AC198: =AC175-AC106 -> 64069.02954 | AD198: =AD175-AD106 -> 65011.65626 | AE198: =AE175-AE106 -> 62426.25171 | AF198: =AF175-AF106 -> 63398.26843 | AG198: =AG175-AG106 -> 64385.31897 | AH198: =AH175-AH106 -> 65387.6338 | AI198: =AI175-AI106 -> 66405.44685 | AJ198: =AJ175-AJ106 -> 0 | AK198: =AK175-AK106 -> 0 | AL198: =AL175-AL106 -> 0 | AM198: =AM175-AM106 -> 0 | AN198: =AN175-AN106 -> 0 | AO198: =AO175-AO106 -> 0 | AP198: =AP175-AP106 -> 0 | AQ198: =AQ175-AQ106 -> 0 | AR198: =AR175-AR106 -> 0 | AS198: =AS175-AS106 -> 0 | AT198: =AT175-AT106 -> 0 | AU198: =AU175-AU106 -> 0 | AV198: =AV175-AV106 -> 0 | AW198: =AW175-AW106 -> 0 | AX198: =AX175-AX106 -> 0
B199: Equity IRR | J199: =IRR(J198:AX198) -> 0.2093215689
J201: =IF(J3,J4,NA()) ->  | K201: =IF(K3,K4,NA()) -> 2020-01-01 | L201: =IF(L3,L4,NA()) -> 2021-01-01 | M201: =IF(M3,M4,NA()) -> 2022-01-01 | N201: =IF(N3,N4,NA()) -> 2023-01-01 | O201: =IF(O3,O4,NA()) -> 2024-01-01 | P201: =IF(P3,P4,NA()) -> 2025-01-01 | Q201: =IF(Q3,Q4,NA()) -> 2026-01-01 | R201: =IF(R3,R4,NA()) -> 2027-01-01 | S201: =IF(S3,S4,NA()) -> 2028-01-01 | T201: =IF(T3,T4,NA()) -> 2029-01-01 | U201: =IF(U3,U4,NA()) -> 2030-01-01 | V201: =IF(V3,V4,NA()) -> 2031-01-01 | W201: =IF(W3,W4,NA()) -> 2032-01-01 | X201: =IF(X3,X4,NA()) -> 2033-01-01 | Y201: =IF(Y3,Y4,NA()) -> 2034-01-01 | Z201: =IF(Z3,Z4,NA()) -> 2035-01-01 | AA201: =IF(AA3,AA4,NA()) -> 2036-01-01 | AB201: =IF(AB3,AB4,NA()) -> 2037-01-01 | AC201: =IF(AC3,AC4,NA()) -> 2038-01-01 | AD201: =IF(AD3,AD4,NA()) -> 2039-01-01 | AE201: =IF(AE3,AE4,NA()) -> 2040-01-01 | AF201: =IF(AF3,AF4,NA()) -> 2041-01-01 | AG201: =IF(AG3,AG4,NA()) -> 2042-01-01 | AH201: =IF(AH3,AH4,NA()) -> 2043-01-01 | AI201: =IF(AI3,AI4,NA()) -> 2044-01-01 | AJ201: =IF(AJ3,AJ4,NA()) ->  | AK201: =IF(AK3,AK4,NA()) ->  | AL201: =IF(AL3,AL4,NA()) ->  | AM201: =IF(AM3,AM4,NA()) ->  | AN201: =IF(AN3,AN4,NA()) ->  | AO201: =IF(AO3,AO4,NA()) ->  | AP201: =IF(AP3,AP4,NA()) ->  | AQ201: =IF(AQ3,AQ4,NA()) ->  | AR201: =IF(AR3,AR4,NA()) ->  | AS201: =IF(AS3,AS4,NA()) ->  | AT201: =IF(AT3,AT4,NA()) ->  | AU201: =IF(AU3,AU4,NA()) ->  | AV201: =IF(AV3,AV4,NA()) ->  | AW201: =IF(AW3,AW4,NA()) ->  | AX201: =IF(AX3,AX4,NA()) -> 
B202: CFADS | J202: =J171 -> 0 | K202: =K171 -> 51219.43204 | L202: 51837.83467 | M202: 52463.94761 | N202: 53097.82327 | O202: 53739.51254 | P202: 54389.06464 | Q202: 55046.52706 | R202: 55711.9454 | S202: 56385.36328 | T202: 57066.82222 | U202: 57756.36147 | V202: 58454.01792 | W202: 59159.82593 | X202: 59873.8172 | Y202: 60596.02059 | Z202: 61326.46202 | AA202: 62226.6478 | AB202: 63140.76572 | AC202: 64069.02954 | AD202: 65011.65626 | AE202: 62426.25171 | AF202: 63398.26843 | AG202: 64385.31897 | AH202: 65387.6338 | AI202: 66405.44685 | AJ202: 0 | AK202: 0 | AL202: 0 | AM202: 0 | AN202: 0 | AO202: 0 | AP202: 0 | AQ202: 0 | AR202: 0 | AS202: 0 | AT202: 0 | AU202: 0 | AV202: 0 | AW202: 0 | AX202: 0
B203: Debt Service | J203: =J172+J173 -> 0 | K203: =K172+K173 -> 30758.77456 | L203: 30758.77456 | M203: 30758.77456 | N203: 30758.77456 | O203: 30758.77456 | P203: 30758.77456 | Q203: 30758.77456 | R203: 30758.77456 | S203: 30758.77456 | T203: 30758.77456 | U203: 30758.77456 | V203: 30758.77456 | W203: 30758.77456 | X203: 30758.77456 | Y203: 30758.77456 | Z203: 0 | AA203: 0 | AB203: 0 | AC203: 0 | AD203: 0 | AE203: 0 | AF203: 0 | AG203: 0 | AH203: 0 | AI203: 0 | AJ203: 0 | AK203: 0 | AL203: 0 | AM203: 0 | AN203: 0 | AO203: 0 | AP203: 0 | AQ203: 0 | AR203: 0 | AS203: 0 | AT203: 0 | AU203: 0 | AV203: 0 | AW203: 0 | AX203: 0
B204: DSCR | E204: =MIN(J204:AX204) -> 1.66519742 | J204: =IFERROR(J202/J203,FALSE) -> FALSE | K204: =IFERROR(K202/K203,FALSE) -> 1.66519742 | L204: 1.685302338 | M204: 1.705657926 | N204: 1.726265888 | O204: 1.747127879 | P204: 1.768245498 | Q204: 1.78962029 | R204: 1.811253738 | S204: 1.833147259 | T204: 1.855302204 | U204: 1.877719847 | V204: 1.90040139 | W204: 1.923347948 | X204: 1.946560552 | Y204: 1.970040142 | Z204: FALSE | AA204: FALSE | AB204: FALSE | AC204: FALSE | AD204: FALSE | AE204: FALSE | AF204: FALSE | AG204: FALSE | AH204: FALSE | AI204: FALSE | AJ204: FALSE | AK204: FALSE | AL204: FALSE | AM204: FALSE | AN204: FALSE | AO204: FALSE | AP204: FALSE | AQ204: FALSE | AR204: FALSE | AS204: FALSE | AT204: FALSE | AU204: FALSE | AV204: FALSE | AW204: FALSE | AX204: FALSE
B206: Debt Service Period | E206: ='Operating Data'!F22 -> 15 | K206: =K2<=$E$206 -> TRUE | L206: =L2<=$E$206 -> TRUE | M206: =M2<=$E$206 -> TRUE | N206: =N2<=$E$206 -> TRUE | O206: =O2<=$E$206 -> TRUE | P206: =P2<=$E$206 -> TRUE | Q206: =Q2<=$E$206 -> TRUE | R206: =R2<=$E$206 -> TRUE | S206: =S2<=$E$206 -> TRUE | T206: =T2<=$E$206 -> TRUE | U206: =U2<=$E$206 -> TRUE | V206: =V2<=$E$206 -> TRUE | W206: =W2<=$E$206 -> TRUE | X206: =X2<=$E$206 -> TRUE | Y206: =Y2<=$E$206 -> TRUE | Z206: =Z2<=$E$206 -> FALSE | AA206: =AA2<=$E$206 -> FALSE | AB206: =AB2<=$E$206 -> FALSE | AC206: =AC2<=$E$206 -> FALSE | AD206: =AD2<=$E$206 -> FALSE | AE206: =AE2<=$E$206 -> FALSE | AF206: =AF2<=$E$206 -> FALSE | AG206: =AG2<=$E$206 -> FALSE | AH206: =AH2<=$E$206 -> FALSE | AI206: =AI2<=$E$206 -> FALSE | AJ206: =AJ2<=$E$206 -> FALSE | AK206: =AK2<=$E$206 -> FALSE | AL206: =AL2<=$E$206 -> FALSE | AM206: =AM2<=$E$206 -> FALSE | AN206: =AN2<=$E$206 -> FALSE | AO206: =AO2<=$E$206 -> FALSE | AP206: =AP2<=$E$206 -> FALSE | AQ206: =AQ2<=$E$206 -> FALSE | AR206: =AR2<=$E$206 -> FALSE | AS206: =AS2<=$E$206 -> FALSE | AT206: =AT2<=$E$206 -> FALSE | AU206: =AU2<=$E$206 -> FALSE | AV206: =AV2<=$E$206 -> FALSE | AW206: =AW2<=$E$206 -> FALSE | AX206: =AX2<=$E$206 -> FALSE
B207: CFADS | K207: =K202*K206 -> 51219.43204 | L207: =L202*L206 -> 51837.83467 | M207: 52463.94761 | N207: 53097.82327 | O207: 53739.51254 | P207: 54389.06464 | Q207: 55046.52706 | R207: 55711.9454 | S207: 56385.36328 | T207: 57066.82222 | U207: 57756.36147 | V207: 58454.01792 | W207: 59159.82593 | X207: 59873.8172 | Y207: 60596.02059 | Z207: 0 | AA207: 0 | AB207: 0 | AC207: 0 | AD207: 0 | AE207: 0 | AF207: 0 | AG207: 0 | AH207: 0 | AI207: 0 | AJ207: 0 | AK207: 0 | AL207: 0 | AM207: 0 | AN207: 0 | AO207: 0 | AP207: 0 | AQ207: 0 | AR207: 0 | AS207: 0 | AT207: 0 | AU207: 0 | AV207: 0 | AW207: 0 | AX207: 0
B208: PV CFADS | E208: =NPV(F210,K207:AX207) -> 637593.327 | F208: =G211 -> 354261.4453 | G208: =E208/F208 -> 1.799781872
B210: PV of CFADS | F210: =H2 -> 0.035 | G210: =NPV(F210,K202:AX202) -> 953601.5237
B211: Debt Outstanding | F211: =H2 -> 0.035 | G211: =J105 -> 354261.4453
B212: PLCR | G212: =G210/G211 -> 2.691801596
B214: PV of Revenue
B215: PV of Generation
B216: LCOE

Sheet Operating Data
D2: Scenario Number | E2: 4
E4: EPC Cost | F4: Development | G4: Insurance | H4: Owner Cost | I4: Total | K4: MWp | L4: Degradation | M4: GWH Gen | O4: Administrative Cost | P4: Insurance Cost | Q4: Other Costs | R4: Total
D5: Bifacial P50 | E5: 417191.22 | F5: 3202 | G5: 1386.90408 | H5: 3122.803271 | I5: 424902.9274 | K5: 608 | L5: 0.004 | M5: 1463.407 | O5: 500 | P5: 913.420684 | Q5: 2432.232 | R5: 3845.652684
D6: Bifacial P90 | E6: 417191.22 | F6: 3202 | G6: 1386.90408 | H6: 3122.803271 | I6: 424902.9274 | K6: 608 | L6: 0.004 | M6: 1352.852042 | O6: 500 | P6: 913.420684 | Q6: 2432.232 | R6: 3845.652684
D7: Mono P50 | E7: 464636.8863 | F7: 3202 | G7: 1245.57366 | H7: 3122.803271 | I7: 472207.2632 | K7: 710 | L7: 0.004 | M7: 1510.712902 | O7: 500 | P7: 1017.062992 | Q7: 2842.488 | R7: 4359.550992
D8: Mono P90 | E8: 464636.8863 | F8: 3202 | G8: 1386.90408 | H8: 3122.803271 | I8: 472348.5937 | K8: 710 | L8: 0.004 | M8: 1426.879197 | O8: 500 | P8: 1017.062992 | Q8: 2842.488 | R8: 4359.550992
D10: =INDEX(D5:D8,$E$2) -> Mono P90 | E10: =INDEX(E5:E8,$E$2) -> 464636.8863 | F10: =INDEX(F5:F8,$E$2) -> 3202 | G10: 1386.90408 | H10: 3122.803271 | I10: 472348.5937 | K10: =INDEX(K5:K8,$E$2) -> 710 | L10: =INDEX(L5:L8,$E$2) -> 0.004 | M10: 1426.879197 | O10: =INDEX(O5:O8,$E$2) -> 500 | P10: =INDEX(P5:P8,$E$2) -> 1017.062992 | Q10: 2842.488 | R10: 4359.550992
D13: Asset Life Yrs | E13: ='Sensitivity Factors'!H18 -> 25
D15: Tax Rate | E15: 0.15
D16: Tax Depreciation | E16: =1/20 -> 0.05
D18: Inflation Rate | E18: 0.02
D21: Debt to Capital | F21: 0.75
D22: Debt Tenor | F22: 15
D23: Payment Style | F23: Mortgage
D24: Base Interest Rate | F24: ='Sensitivity Factors'!I18 -> 0.02
D25: Credit Spread | F25: 0.015
D26: Fees | F26: 0.015

Sheet Sculpting
B2: Interest Rate | F2: ='Operating Data'!F24+'Operating Data'!F25 -> 0.035
B3: Inflation/Growth | F3: ='Operating Data'!E18 -> 0.02
B4: Real | F4: =(1+F2)/(1+F3)-1 -> 0.01470588235
E6: 1 | F6: 2 | G6: 3 | H6: 4 | I6: 5 | J6: 6 | K6: 7 | L6: 8 | M6: 9 | N6: 10 | O6: 11 | P6: 12 | Q6: 13 | R6: 14 | S6: 15 | T6: 16 | U6: 17 | V6: 18 | W6: 19 | X6: 20 | Y6: 21 | Z6: 22 | AA6: 23 | AB6: 24 | AC6: 25 | AD6: 26 | AE6: 27 | AF6: 28 | AG6: 29 | AH6: 30 | AI6: 31 | AJ6: 32 | AK6: 33 | AL6: 34 | AM6: 35 | AN6: 36 | AO6: 37 | AP6: 38 | AQ6: 39 | AR6: 40
B7: Repayment Switch | D7: ='Operating Data'!F22 -> 15 | E7: =E6<=$D$7 -> TRUE | F7: =F6<=$D$7 -> TRUE | G7: TRUE | H7: TRUE | I7: TRUE | J7: TRUE | K7: TRUE | L7: TRUE | M7: TRUE | N7: TRUE | O7: TRUE | P7: TRUE | Q7: TRUE | R7: TRUE | S7: TRUE | T7: FALSE | U7: FALSE | V7: FALSE | W7: FALSE | X7: FALSE | Y7: FALSE | Z7: FALSE | AA7: FALSE | AB7: FALSE | AC7: FALSE | AD7: FALSE | AE7: FALSE | AF7: FALSE | AG7: FALSE | AH7: FALSE | AI7: FALSE | AJ7: FALSE | AK7: FALSE | AL7: FALSE | AM7: FALSE | AN7: FALSE | AO7: FALSE | AP7: FALSE | AQ7: FALSE | AR7: FALSE
B8: Inflation Index | D8: 1 | E8: =D8*(1+$F$3) -> 1.02 | F8: =E8*(1+$F$3) -> 1.0404 | G8: 1.061208 | H8: 1.08243216 | I8: 1.104080803 | J8: 1.126162419 | K8: 1.148685668 | L8: 1.171659381 | M8: 1.195092569 | N8: 1.21899442 | O8: 1.243374308 | P8: 1.268241795 | Q8: 1.29360663 | R8: 1.319478763 | S8: 1.345868338 | T8: 1.372785705 | U8: 1.400241419 | V8: 1.428246248 | W8: 1.456811173 | X8: 1.485947396 | Y8: 1.515666344 | Z8: 1.545979671 | AA8: 1.576899264 | AB8: 1.608437249 | AC8: 1.640605994 | AD8: 1.673418114 | AE8: 1.706886477 | AF8: 1.741024206 | AG8: 1.77584469 | AH8: 1.811361584 | AI8: 1.847588816 | AJ8: 1.884540592 | AK8: 1.922231404 | AL8: 1.960676032 | AM8: 1.999889553 | AN8: 2.039887344 | AO8: 2.080685091 | AP8: 2.122298792 | AQ8: 2.164744768 | AR8: 2.208039664
B9: CFADS Example | E9: 100 | F9: =E9*(1+$F$3) -> 102 | G9: =F9*(1+$F$3) -> 104.04 | H9: 106.1208 | I9: 108.243216 | J9: 110.4080803 | K9: 112.6162419 | L9: 114.8685668 | M9: 117.1659381 | N9: 119.5092569 | O9: 121.899442 | P9: 124.3374308 | Q9: 126.8241795 | R9: 129.360663 | S9: 131.9478763 | T9: 134.5868338 | U9: 137.2785705 | V9: 140.0241419 | W9: 142.8246248 | X9: 145.6811173 | Y9: 148.5947396 | Z9: 151.5666344 | AA9: 154.5979671 | AB9: 157.6899264 | AC9: 160.8437249 | AD9: 164.0605994 | AE9: 167.3418114 | AF9: 170.6886477 | AG9: 174.1024206 | AH9: 177.584469 | AI9: 181.1361584 | AJ9: 184.7588816 | AK9: 188.4540592 | AL9: 192.2231404 | AM9: 196.0676032 | AN9: 199.9889553 | AO9: 203.9887344 | AP9: 208.0685091 | AQ9: 212.2298792 | AR9: 216.4744768
B11: Total PMT | E11: =PMT($F$4,$D$7,-$D$16)*E8*E7 -> 114.4084386 | F11: =PMT($F$4,$D$7,-$D$16)*F8*F7 -> 116.6966074 | G11: =PMT($F$4,$D$7,-$D$16)*G8*G7 -> 119.0305395 | H11: =PMT($F$4,$D$7,-$D$16)*H8*H7 -> 121.4111503 | I11: =PMT($F$4,$D$7,-$D$16)*I8*I7 -> 123.8393733 | J11: =PMT($F$4,$D$7,-$D$16)*J8*J7 -> 126.3161608 | K11: =PMT($F$4,$D$7,-$D$16)*K8*K7 -> 128.842484 | L11: =PMT($F$4,$D$7,-$D$16)*L8*L7 -> 131.4193337 | M11: =PMT($F$4,$D$7,-$D$16)*M8*M7 -> 134.0477204 | N11: =PMT($F$4,$D$7,-$D$16)*N8*N7 -> 136.7286748 | O11: =PMT($F$4,$D$7,-$D$16)*O8*O7 -> 139.4632483 | P11: =PMT($F$4,$D$7,-$D$16)*P8*P7 -> 142.2525132 | Q11: =PMT($F$4,$D$7,-$D$16)*Q8*Q7 -> 145.0975635 | R11: =PMT($F$4,$D$7,-$D$16)*R8*R7 -> 147.9995148 | S11: =PMT($F$4,$D$7,-$D$16)*S8*S7 -> 150.9595051 | T11: =PMT($F$4,$D$7,-$D$16)*T8*T7 -> 0 | U11: =PMT($F$4,$D$7,-$D$16)*U8*U7 -> 0 | V11: =PMT($F$4,$D$7,-$D$16)*V8*V7 -> 0 | W11: =PMT($F$4,$D$7,-$D$16)*W8*W7 -> 0 | X11: =PMT($F$4,$D$7,-$D$16)*X8*X7 -> 0 | Y11: =PMT($F$4,$D$7,-$D$16)*Y8*Y7 -> 0 | Z11: =PMT($F$4,$D$7,-$D$16)*Z8*Z7 -> 0 | AA11: =PMT($F$4,$D$7,-$D$16)*AA8*AA7 -> 0 | AB11: =PMT($F$4,$D$7,-$D$16)*AB8*AB7 -> 0 | AC11: =PMT($F$4,$D$7,-$D$16)*AC8*AC7 -> 0 | AD11: =PMT($F$4,$D$7,-$D$16)*AD8*AD7 -> 0 | AE11: =PMT($F$4,$D$7,-$D$16)*AE8*AE7 -> 0 | AF11: =PMT($F$4,$D$7,-$D$16)*AF8*AF7 -> 0 | AG11: =PMT($F$4,$D$7,-$D$16)*AG8*AG7 -> 0 | AH11: =PMT($F$4,$D$7,-$D$16)*AH8*AH7 -> 0 | AI11: =PMT($F$4,$D$7,-$D$16)*AI8*AI7 -> 0 | AJ11: =PMT($F$4,$D$7,-$D$16)*AJ8*AJ7 -> 0 | AK11: =PMT($F$4,$D$7,-$D$16)*AK8*AK7 -> 0 | AL11: =PMT($F$4,$D$7,-$D$16)*AL8*AL7 -> 0 | AM11: =PMT($F$4,$D$7,-$D$16)*AM8*AM7 -> 0 | AN11: =PMT($F$4,$D$7,-$D$16)*AN8*AN7 -> 0 | AO11: =PMT($F$4,$D$7,-$D$16)*AO8*AO7 -> 0 | AP11: =PMT($F$4,$D$7,-$D$16)*AP8*AP7 -> 0 | AQ11: =PMT($F$4,$D$7,-$D$16)*AQ8*AQ7 -> 0 | AR11: =PMT($F$4,$D$7,-$D$16)*AR8*AR7 -> 0
B13: Debt
C14: Opening | E14: =D16 -> 1500 | F14: =E16 -> 1438.091561 | G14: 1371.728159 | H14: 1300.708105 | I14: 1224.821738 | J14: 1143.851126 | K14: 1057.569754 | L14: 965.7422115 | M14: 868.1238552 | N14: 764.4604698 | O14: 654.4879114 | P14: 537.9317401 | Q14: 414.5068377 | R14: 283.9170136 | S14: 145.8545943 | T14: 4.547473509e-13 | U14: 4.706635082e-13 | V14: 4.87136731e-13 | W14: 5.041865165e-13 | X14: 5.218330446e-13 | Y14: 5.400972012e-13 | Z14: 5.590006032e-13 | AA14: 5.785656243e-13 | AB14: 5.988154212e-13 | AC14: 6.197739609e-13 | AD14: 6.414660496e-13 | AE14: 6.639173613e-13 | AF14: 6.871544689e-13 | AG14: 7.112048753e-13 | AH14: 7.36097046e-13 | AI14: 7.618604426e-13 | AJ14: 7.885255581e-13 | AK14: 8.161239526e-13 | AL14: 8.44688291e-13 | AM14: 8.742523811e-13 | AN14: 9.048512145e-13 | AO14: 9.36521007e-13 | AP14: 9.692992422e-13 | AQ14: 1.003224716e-12 | AR14: 1.038337581e-12
C15: Less: Repayment | E15: =E11-E17 -> 61.90843861 | F15: =F11-F17 -> 66.36340274 | G15: 71.02005398 | H15: 75.88636666 | I15: 80.9706125 | J15: 86.2813714 | K15: 91.82754262 | L15: 97.61835629 | M15: 103.6633854 | N15: 109.9725583 | O15: 116.5561714 | P15: 123.4249023 | Q15: 130.5898242 | R15: 138.0624193 | S15: 145.8545943 | T15: -1.591615728e-14 | U15: -1.647322279e-14 | V15: -1.704978558e-14 | W15: -1.764652808e-14 | X15: -1.826415656e-14 | Y15: -1.890340204e-14 | Z15: -1.956502111e-14 | AA15: -2.024979685e-14 | AB15: -2.095853974e-14 | AC15: -2.169208863e-14 | AD15: -2.245131173e-14 | AE15: -2.323710765e-14 | AF15: -2.405040641e-14 | AG15: -2.489217064e-14 | AH15: -2.576339661e-14 | AI15: -2.666511549e-14 | AJ15: -2.759839453e-14 | AK15: -2.856433834e-14 | AL15: -2.956409018e-14 | AM15: -3.059883334e-14 | AN15: -3.166979251e-14 | AO15: -3.277823524e-14 | AP15: -3.392547348e-14 | AQ15: -3.511286505e-14 | AR15: -3.634181533e-14
C16: Closing | D16: 1500 | E16: =E14-E15 -> 1438.091561 | F16: =F14-F15 -> 1371.728159 | G16: 1300.708105 | H16: 1224.821738 | I16: 1143.851126 | J16: 1057.569754 | K16: 965.7422115 | L16: 868.1238552 | M16: 764.4604698 | N16: 654.4879114 | O16: 537.9317401 | P16: 414.5068377 | Q16: 283.9170136 | R16: 145.8545943 | S16: 4.547473509e-13 | T16: 4.706635082e-13 | U16: 4.87136731e-13 | V16: 5.041865165e-13 | W16: 5.218330446e-13 | X16: 5.400972012e-13 | Y16: 5.590006032e-13 | Z16: 5.785656243e-13 | AA16: 5.988154212e-13 | AB16: 6.197739609e-13 | AC16: 6.414660496e-13 | AD16: 6.639173613e-13 | AE16: 6.871544689e-13 | AF16: 7.112048753e-13 | AG16: 7.36097046e-13 | AH16: 7.618604426e-13 | AI16: 7.885255581e-13 | AJ16: 8.161239526e-13 | AK16: 8.44688291e-13 | AL16: 8.742523811e-13 | AM16: 9.048512145e-13 | AN16: 9.36521007e-13 | AO16: 9.692992422e-13 | AP16: 1.003224716e-12 | AQ16: 1.038337581e-12 | AR16: 1.074679396e-12
C17: Interest | D17: =F2 -> 0.035 | E17: =E14*$D$17 -> 52.5 | F17: =F14*$D$17 -> 50.33320465 | G17: 48.01048555 | H17: 45.52478366 | I17: 42.86876083 | J17: 40.03478939 | K17: 37.01494139 | L17: 33.8009774 | M17: 30.38433493 | N17: 26.75611644 | O17: 22.9070769 | P17: 18.8276109 | Q17: 14.50773932 | R17: 9.937095475 | S17: 5.104910799 | T17: 1.591615728e-14 | U17: 1.647322279e-14 | V17: 1.704978558e-14 | W17: 1.764652808e-14 | X17: 1.826415656e-14 | Y17: 1.890340204e-14 | Z17: 1.956502111e-14 | AA17: 2.024979685e-14 | AB17: 2.095853974e-14 | AC17: 2.169208863e-14 | AD17: 2.245131173e-14 | AE17: 2.323710765e-14 | AF17: 2.405040641e-14 | AG17: 2.489217064e-14 | AH17: 2.576339661e-14 | AI17: 2.666511549e-14 | AJ17: 2.759839453e-14 | AK17: 2.856433834e-14 | AL17: 2.956409018e-14 | AM17: 3.059883334e-14 | AN17: 3.166979251e-14 | AO17: 3.277823524e-14 | AP17: 3.392547348e-14 | AQ17: 3.511286505e-14 | AR17: 3.634181533e-14
C18: Debt Service | E18: =E17+E15 -> 114.4084386 | F18: =F17+F15 -> 116.6966074 | G18: 119.0305395 | H18: 121.4111503 | I18: 123.8393733 | J18: 126.3161608 | K18: 128.842484 | L18: 131.4193337 | M18: 134.0477204 | N18: 136.7286748 | O18: 139.4632483 | P18: 142.2525132 | Q18: 145.0975635 | R18: 147.9995148 | S18: 150.9595051 | T18: 0 | U18: 0 | V18: 0 | W18: 0 | X18: 0 | Y18: 0 | Z18: 0 | AA18: 0 | AB18: 0 | AC18: 0 | AD18: 0 | AE18: 0 | AF18: 0 | AG18: 0 | AH18: 0 | AI18: 0 | AJ18: 0 | AK18: 0 | AL18: 0 | AM18: 0 | AN18: 0 | AO18: 0 | AP18: 0 | AQ18: 0 | AR18: 0
B20: Repayment Percent | E20: =E15/$D$16 -> 0.04127229241 | F20: =F15/$D$16 -> 0.04424226849 | G20: 0.04734670265 | H20: 0.05059091111 | I20: 0.05398040833 | J20: 0.05752091427 | K20: 0.06121836175 | L20: 0.06507890419 | M20: 0.06910892362 | N20: 0.07331503889 | O20: 0.07770411425 | P20: 0.08228326822 | Q20: 0.08705988279 | R20: 0.09204161286 | S20: 0.09723639618 | T20: -1.061077152e-17 | U20: -1.098214852e-17 | V20: -1.136652372e-17 | W20: -1.176435205e-17 | X20: -1.217610437e-17 | Y20: -1.260226803e-17 | Z20: -1.304334741e-17 | AA20: -1.349986457e-17 | AB20: -1.397235983e-17 | AC20: -1.446139242e-17 | AD20: -1.496754116e-17 | AE20: -1.54914051e-17 | AF20: -1.603360428e-17 | AG20: -1.659478042e-17 | AH20: -1.717559774e-17 | AI20: -1.777674366e-17 | AJ20: -1.839892969e-17 | AK20: -1.904289223e-17 | AL20: -1.970939346e-17 | AM20: -2.039922223e-17 | AN20: -2.1113195e-17 | AO20: -2.185215683e-17 | AP20: -2.261698232e-17 | AQ20: -2.34085767e-17 | AR20: -2.422787688e-17

Sheet Sensitivity Factors
K1: Data Table
D2: Scenario Number | F2: 1
K3: Pre-tax | L3: After-tax | M3: Equity
E4: Cap Exp | F4: O&M | G4: Yield | H4: Life | I4: Int Rate | K4: Project IRR | L4: Project IRR | M4: IRR | N4: DSCR | O4: LLCR | P4: PLCR
K5: =Model!F2 -> 0.1197753169 | L5: =Model!G2 -> 0.1068764874
C6: Base Case | E6: 1 | F6: 1 | G6: 1 | H6: 25 | I6: 0.02 | J6: 1
C7: Worst Case | E7: 1.2 | F7: 1.3 | G7: 0.6 | H7: 25 | I7: 0.03 | J7: 2
C8: High Case | E8: 0.95 | F8: 0.9 | G8: 1.2 | H8: 30 | I8: 0.015 | J8: 3
B9: 1 | C9: =TRANSPOSE(E4:I4)&" worst" -> Cap Exp worst | E9: =E7 -> 1.2 | F9: =F$6 -> 1 | G9: 1 | H9: 25 | I9: 0.02 | J9: 4
B10: 2 | C10: O&M worst | E10: =E$6 -> 1 | F10: =F7 -> 1.3 | G10: 1 | H10: 25 | I10: 0.02 | J10: 5
B11: 3 | C11: Yield worst | E11: 1 | F11: 1 | G11: =G7 -> 0.6 | H11: 25 | I11: 0.02 | J11: 6
B12: 4 | C12: Life worst | E12: 1 | F12: 1 | G12: 1 | H12: =H7 -> 25 | I12: 0.02 | J12: 7
B13: 1 | C13: =TRANSPOSE(E4:H4)&" "&C8 -> Cap Exp High Case | E13: =E8 -> 0.95 | F13: 1 | G13: 1 | H13: 25 | I13: 0.02 | J13: 8
B14: 2 | C14: O&M High Case | E14: 1 | F14: =F8 -> 0.9 | G14: 1 | H14: 25 | I14: 0.02 | J14: 9
B15: 3 | C15: Yield High Case | E15: 1 | F15: 1 | G15: =G8 -> 1.2 | H15: 25 | I15: 0.02 | J15: 10
B16: 4 | C16: Life High Case | E16: 1 | F16: 1 | G16: 1 | H16: =H8 -> 30 | I16: 0.02 | J16: 11
C18: =INDEX(C6:C16,$F$2) -> Base Case | D18: =INDEX(D6:D16,$F$2) -> 0 | E18: 1 | F18: 1 | G18: 1 | H18: 25 | I18: 0.02
F21: High vs Base | G21: Low vs Base
E22: Cap Exp | F22: =K13-$K$6 -> 0 | G22: =K9-$K$6 -> 0
E23: O&M | F23: =K14-$K$6 -> 0 | G23: =K10-$K$6 -> 0
E24: Yield | F24: =K15-$K$6 -> 0 | G24: =K11-$K$6 -> 0
E25: Life | F25: =K16-$K$6 -> 0 | G25: =K12-$K$6 -> 0
